Workbook

Sheet Orçamento
O3: UNIDADE ESCOLAR | V3: CÓDIGO INEP
O4: CENTRO DE ATENDIMENTO EDUCACIONAL ESPECIALIZADO DE IPORÁ | V4: 52070069
A6: Nmax | M6: Ajustar altura? | O6: OBRA | S6: DATA | V6: CIDADE
A7: =MAX($C$18:$C$319) -> 4 | M7: NÃO | O7: REFORMA | S7: 2020-04-06 | V7: IPORÁ
H8: DESONERADA
O9: CRE | R9: ENDEREÇO | S9: REFERÊNCIA AGETOP | V9: REFERÊNCIA SINAPI
O10: IPORÁ | R10: AV DR NETO ESQ. C/ RUA GOIÂNIA S/N, CENTRO, CEP:76200-000 | S10: ABR/19 | T10: DESONERADA | V10: DEZ/19 | W10: DESONERADA
O12: ÁREA EXISTENTE (M²) | R12: ÁREA A CONSTRUIR (M²) | S12: ÁREA A DEMOLIR (M²) | V12: ÁREA TOTAL CONSTRUÍDA (M²)
O13: 592.3 | R13: 50.8 | S13: 0 | V13: 643.1
L15: FILTRO | O15: PLANILHA ORÇAMENTÁRIA
A16: Nível E | B16: Save Nivel | C16: Nível C | D16: Altura | E16: n1 | F16: n2 | G16: n3 | H16: n4 | I16: n5 | J16: Czero | K16: Cnível | L16: ↓ | M16: Nível | N16: Nível Corrigido | O16: ITEM | P16: TABELA | Q16: CODIGO | R16: DESCRIÇÃO DOS SERVIÇOS | S16: UNID | T16: QUANT | U16: MAT | V16: MO | W16: T.SERVIÇO | X16: OBSERVAÇÕES¹
A17: =CHOOSE(1+LOG(1+2*(ORÇAMENTO.Nivel="Nível 1")+4*(ORÇAMENTO.Nivel="Nível 2")+8*(ORÇAMENTO.Nivel="Nível 3")+16*(ORÇAMENTO.Nivel="Nível 4")+32*(ORÇAMENTO.Nivel="Serviço"),2),0,1,2,3,4,"S") -> S | B17: =IF(OR(C17="s",C17=0),OFFSET(B17,-1,0),C17) -> Save Nivel | C17: =IF(OFFSET(C17,-1,0)="L",1,IF(OFFSET(C17,-1,0)=1,2,IF(OR(A17="s",A17=0),"S",IF(AND(OFFSET(C17,-1,0)=2,A17=4),3,IF(AND(OR(OFFSET(C17,-1,0)="s",OFFSET(C17,-1,0)=0),A17<>"s",A17>OFFSET(B17,-1,0)),OFFSET(B17,-1,0),A17))))) -> S | D17: =IF(OR(C17="S",C17=0),0,IF(ISERROR(K17),J17,SMALL(J17:K17,1))) -> 0 | E17: =IF($C17=1,OFFSET(E17,-1,0)+1,OFFSET(E17,-1,0)) -> n1 | F17: =IF($C17=1,0,IF($C17=2,OFFSET(F17,-1,0)+1,OFFSET(F17,-1,0))) -> n2 | G17: =IF(AND($C17<=2,$C17<>0),0,IF($C17=3,OFFSET(G17,-1,0)+1,OFFSET(G17,-1,0))) -> n3 | H17: =IF(AND($C17<=3,$C17<>0),0,IF($C17=4,OFFSET(H17,-1,0)+1,OFFSET(H17,-1,0))) -> n4 | I17: =IF(AND($C17<=4,$C17<>0),0,IF(AND($C17="S",$W17>0),OFFSET(I17,-1,0)+1,OFFSET(I17,-1,0))) -> n5 | J17: =IF(OR($C17="S",$C17=0),0,MATCH(0,OFFSET($D17,1,$C17,ROW($C$319)-ROW($C17)),0)) -> 0 | K17: =IF(OR($C17="S",$C17=0),0,MATCH(OFFSET($D17,0,$C17)+1,OFFSET($D17,1,$C17,ROW($C$319)-ROW($C17)),0)) -> 0 | M17: Serviço | N17: Serviço | O17: - | P17: SINAPI | R17: (sem código) | S17: - | U17: 0 | V17: 0 | W17: 0
A18: 0 | C18: L | D18: =COUNTA(OFFSET(D18,1,0):D$319) -> 300 | E18: =LEFT(O19,1)-1 -> 0 | L18: F | M18: LOTE | N18: LOTE | O18: REFORMA - CENTRO DE ATENDIMENTO EDUCACIONAL ESPECIALIZADO DE IPORÁ | W18: 0
A19: =CHOOSE(1+LOG(1+2*(ORÇAMENTO.Nivel="Nível 1")+4*(ORÇAMENTO.Nivel="Nível 2")+8*(ORÇAMENTO.Nivel="Nível 3")+16*(ORÇAMENTO.Nivel="Nível 4")+32*(ORÇAMENTO.Nivel="Serviço"),2),0,1,2,3,4,"S") -> 1 | B19: =IF(OR(C19="s",C19=0),OFFSET(B19,-1,0),C19) -> 1 | C19: =IF(OFFSET(C19,-1,0)="L",1,IF(OFFSET(C19,-1,0)=1,2,IF(OR(A19="s",A19=0),"S",IF(AND(OFFSET(C19,-1,0)=2,A19=4),3,IF(AND(OR(OFFSET(C19,-1,0)="s",OFFSET(C19,-1,0)=0),A19<>"s",A19>OFFSET(B19,-1,0)),OFFSET(B19,-1,0),A19))))) -> 1 | D19: =IF(OR(C19="S",C19=0),0,IF(ISERROR(K19),J19,SMALL(J19:K19,1))) -> 300 | E19: =IF($C19=1,OFFSET(E19,-1,0)+1,OFFSET(E19,-1,0)) -> 1 | F19: =IF($C19=1,0,IF($C19=2,OFFSET(F19,-1,0)+1,OFFSET(F19,-1,0))) -> 0 | G19: =IF(AND($C19<=2,$C19<>0),0,IF($C19=3,OFFSET(G19,-1,0)+1,OFFSET(G19,-1,0))) -> 0 | H19: =IF(AND($C19<=3,$C19<>0),0,IF($C19=4,OFFSET(H19,-1,0)+1,OFFSET(H19,-1,0))) -> 0 | I19: =IF(AND($C19<=4,$C19<>0),0,IF(AND($C19="S",$W19>0),OFFSET(I19,-1,0)+1,OFFSET(I19,-1,0))) -> 0 | J19: =IF(OR($C19="S",$C19=0),0,MATCH(0,OFFSET($D19,1,$C19,ROW($C$319)-ROW($C19)),0)) -> 300 | K19: =IF(OR($C19="S",$C19=0),0,MATCH(OFFSET($D19,0,$C19)+1,OFFSET($D19,1,$C19,ROW($C$319)-ROW($C19)),0)) ->  | L19: F | M19: Nível 1 | N19: Nível 1 | O19: 1. | P19: AGETOP | R19: REFORMA | W19: 0
A20: 2 | B20: =IF(OR(C20="s",C20=0),OFFSET(B20,-1,0),C20) -> 2 | C20: =IF(OFFSET(C20,-1,0)="L",1,IF(OFFSET(C20,-1,0)=1,2,IF(OR(A20="s",A20=0),"S",IF(AND(OFFSET(C20,-1,0)=2,A20=4),3,IF(AND(OR(OFFSET(C20,-1,0)="s",OFFSET(C20,-1,0)=0),A20<>"s",A20>OFFSET(B20,-1,0)),OFFSET(B20,-1,0),A20))))) -> 2 | D20: =IF(OR(C20="S",C20=0),0,IF(ISERROR(K20),J20,SMALL(J20:K20,1))) -> 21 | E20: =IF($C20=1,OFFSET(E20,-1,0)+1,OFFSET(E20,-1,0)) -> 1 | F20: =IF($C20=1,0,IF($C20=2,OFFSET(F20,-1,0)+1,OFFSET(F20,-1,0))) -> 1 | G20: =IF(AND($C20<=2,$C20<>0),0,IF($C20=3,OFFSET(G20,-1,0)+1,OFFSET(G20,-1,0))) -> 0 | H20: =IF(AND($C20<=3,$C20<>0),0,IF($C20=4,OFFSET(H20,-1,0)+1,OFFSET(H20,-1,0))) -> 0 | I20: =IF(AND($C20<=4,$C20<>0),0,IF(AND($C20="S",$W20>0),OFFSET(I20,-1,0)+1,OFFSET(I20,-1,0))) -> 0 | J20: 299 | K20: 21 | M20: Nível 2 | N20: Nível 2 | O20: - | P20: AGETOP | R20: SERVIÇOS PRELIMINARES | W20: 0
A21: 3 | B21: =IF(OR(C21="s",C21=0),OFFSET(B21,-1,0),C21) -> 3 | C21: =IF(OFFSET(C21,-1,0)="L",1,IF(OFFSET(C21,-1,0)=1,2,IF(OR(A21="s",A21=0),"S",IF(AND(OFFSET(C21,-1,0)=2,A21=4),3,IF(AND(OR(OFFSET(C21,-1,0)="s",OFFSET(C21,-1,0)=0),A21<>"s",A21>OFFSET(B21,-1,0)),OFFSET(B21,-1,0),A21))))) -> 3 | D21: =IF(OR(C21="S",C21=0),0,IF(ISERROR(K21),J21,SMALL(J21:K21,1))) -> 4 | E21: =IF($C21=1,OFFSET(E21,-1,0)+1,OFFSET(E21,-1,0)) -> 1 | F21: =IF($C21=1,0,IF($C21=2,OFFSET(F21,-1,0)+1,OFFSET(F21,-1,0))) -> 1 | G21: =IF(AND($C21<=2,$C21<>0),0,IF($C21=3,OFFSET(G21,-1,0)+1,OFFSET(G21,-1,0))) -> 1 | H21: =IF(AND($C21<=3,$C21<>0),0,IF($C21=4,OFFSET(H21,-1,0)+1,OFFSET(H21,-1,0))) -> 0 | I21: =IF(AND($C21<=4,$C21<>0),0,IF(AND($C21="S",$W21>0),OFFSET(I21,-1,0)+1,OFFSET(I21,-1,0))) -> 0 | J21: 20 | K21: 4 | M21: Nível 3 | N21: Nível 3 | O21: - | P21: SINAPI | R21: ADEQUAÇÕES DE ACESSIBILIDADE | S21: - | U21: 0 | V21: 0 | W21: 0
A22: S | B22: 3 | C22: S | D22: 0 | E22: 1 | F22: 1 | G22: 1 | H22: 0 | I22: 0 | J22: 0 | K22: 0 | M22: Serviço | N22: Serviço | O22: - | P22: AGETOP | Q22: 67010 | R22: ESCARIFICAÇÃO MANUAL, CORTE DE CONCRETO ATÉ 3CM DE PROFUNDIDADE | S22: m3 | T22: 0.04 | W22: 0
A23: S | B23: 3 | C23: S | D23: 0 | E23: 1 | F23: 1 | G23: 1 | H23: 0 | I23: 0 | J23: 0 | K23: 0 | M23: Serviço | N23: Serviço | O23: - | P23: AGETOP | Q23: 20126 | R23: DEMOLICAO - PISO INTERTRAVADO C/ EMPILHAMENTO | S23: m2 | T23: 23.58 | W23: 0
A24: S | B24: 3 | C24: S | D24: 0 | E24: 1 | F24: 1 | G24: 1 | H24: 0 | I24: 0 | J24: 0 | K24: 0 | M24: Serviço | N24: Serviço | O24: - | P24: SINAPI | Q24: 97644 | R24: REMOÇÃO DE PORTAS, DE FORMA MANUAL, SEM REAPROVEITAMENTO. AF_12/2017 | S24: M2 | T24: 3.78 | W24: 0 | X24: Referência: AGETOP - 20106
A25: 3 | B25: 3 | C25: 3 | D25: 5 | E25: 1 | F25: 1 | G25: 2 | H25: 0 | I25: 0 | J25: 16 | K25: 5 | M25: Nível 3 | N25: Nível 3 | O25: - | P25: AGETOP | R25: AMPLIAÇÃO DA ÁREA DE SERVIÇOS | S25: - | W25: 0
A26: S | B26: 3 | C26: S | D26: 0 | E26: 1 | F26: 1 | G26: 2 | H26: 0 | I26: 0 | J26: 0 | K26: 0 | M26: Serviço | N26: Serviço | O26: - | P26: AGETOP | Q26: 20121 | R26: DEM. MANUAL EM CONCR.SIMPLES C/TR.ATE CB.E CARGA (O.C.) | S26: m3 | T26: 2.23 | W26: 0
A27: S | B27: =IF(OR(C27="s",C27=0),OFFSET(B27,-1,0),C27) -> 3 | C27: =IF(OFFSET(C27,-1,0)="L",1,IF(OFFSET(C27,-1,0)=1,2,IF(OR(A27="s",A27=0),"S",IF(AND(OFFSET(C27,-1,0)=2,A27=4),3,IF(AND(OR(OFFSET(C27,-1,0)="s",OFFSET(C27,-1,0)=0),A27<>"s",A27>OFFSET(B27,-1,0)),OFFSET(B27,-1,0),A27))))) -> S | D27: =IF(OR(C27="S",C27=0),0,IF(ISERROR(K27),J27,SMALL(J27:K27,1))) -> 0 | E27: =IF($C27=1,OFFSET(E27,-1,0)+1,OFFSET(E27,-1,0)) -> 1 | F27: =IF($C27=1,0,IF($C27=2,OFFSET(F27,-1,0)+1,OFFSET(F27,-1,0))) -> 1 | G27: =IF(AND($C27<=2,$C27<>0),0,IF($C27=3,OFFSET(G27,-1,0)+1,OFFSET(G27,-1,0))) -> 2 | H27: =IF(AND($C27<=3,$C27<>0),0,IF($C27=4,OFFSET(H27,-1,0)+1,OFFSET(H27,-1,0))) -> 0 | I27: =IF(AND($C27<=4,$C27<>0),0,IF(AND($C27="S",$W27>0),OFFSET(I27,-1,0)+1,OFFSET(I27,-1,0))) -> 0 | J27: 0 | K27: 0 | M27: Serviço | N27: Serviço | O27: - | P27: AGETOP | Q27: 20118 | R27: DEM.ALVEN.TIJOLO S/REAP. C/TR.ATE CB. E CARGA | S27: m3 | T27: 0.64 | W27: 0
A28: S | B28: 3 | C28: S | D28: 0 | E28: 1 | F28: 1 | G28: 2 | H28: 0 | I28: 0 | J28: 0 | K28: 0 | M28: Serviço | N28: Serviço | O28: - | P28: AGETOP | Q28: 20115 | R28: DEMOLIÇÃO DE REVESTIMENTOS COM AZULEJOS C/TRANSP.ATE CB. E CARGA | S28: m2 | T28: 3.98 | W28: 0
A29: S | B29: 3 | C29: S | D29: 0 | E29: 1 | F29: 1 | G29: 2 | H29: 0 | I29: 0 | J29: 0 | K29: 0 | M29: Serviço | N29: Serviço | O29: - | P29: AGETOP | Q29: 20163 | R29: DEMOLIÇÃO DAS INSTALAÇÕES HIDROSANITÁRIAS E AFINS C/ TRANSP. ATÉ CB. E CARGA | S29: H | T29: 0.1 | W29: 0
A30: 3 | B30: 3 | C30: 3 | D30: 3 | E30: 1 | F30: 1 | G30: 3 | H30: 0 | I30: 0 | J30: 11 | K30: 3 | M30: Nível 3 | N30: Nível 3 | O30: - | P30: AGETOP | R30: EXECUÇÃO DE DUAS SALAS DE AULA MODELO PRÓPRIO | S30: - | W30: 0
A31: S | B31: 3 | C31: S | D31: 0 | E31: 1 | F31: 1 | G31: 3 | H31: 0 | I31: 0 | J31: 0 | K31: 0 | M31: Serviço | N31: Serviço | O31: - | P31: AGETOP | Q31: 20121 | R31: DEM. MANUAL EM CONCR.SIMPLES C/TR.ATE CB.E CARGA (O.C.) | S31: m3 | T31: 3.36 | W31: 0
A32: S | B32: 3 | C32: S | D32: 0 | E32: 1 | F32: 1 | G32: 3 | H32: 0 | I32: 0 | J32: 0 | K32: 0 | M32: Serviço | N32: Serviço | O32: - | P32: COMPOSIÇÃO | Q32: COMP 010_SEE | R32: DEMOLIÇÃO DE GRADE/GRELHA/CORRIMÃO/GUARDA CORPO - METÁLICO | S32: M2 | T32: 24.42 | W32: 0
A33: 3 | B33: 3 | C33: 3 | D33: 4 | E33: 1 | F33: 1 | G33: 4 | H33: 0 | I33: 0 | J33: 8 | K33: 4 | M33: Nível 3 | N33: Nível 3 | O33: - | P33: AGETOP | R33: REFORMA GERAL | S33: - | W33: 0
A34: S | B34: 3 | C34: S | D34: 0 | E34: 1 | F34: 1 | G34: 4 | H34: 0 | I34: 0 | J34: 0 | K34: 0 | M34: Serviço | N34: Serviço | O34: - | P34: AGETOP | Q34: 20106 | R34: RETIRADA DE JANELAS OU PORTAIS C/ TRANSP. ATÉ CB. E CARGA | S34: m2 | T34: 0.75 | W34: 0
A35: =CHOOSE(1+LOG(1+2*(ORÇAMENTO.Nivel="Nível 1")+4*(ORÇAMENTO.Nivel="Nível 2")+8*(ORÇAMENTO.Nivel="Nível 3")+16*(ORÇAMENTO.Nivel="Nível 4")+32*(ORÇAMENTO.Nivel="Serviço"),2),0,1,2,3,4,"S") -> S | B35: =IF(OR(C35="s",C35=0),OFFSET(B35,-1,0),C35) -> 3 | C35: =IF(OFFSET(C35,-1,0)="L",1,IF(OFFSET(C35,-1,0)=1,2,IF(OR(A35="s",A35=0),"S",IF(AND(OFFSET(C35,-1,0)=2,A35=4),3,IF(AND(OR(OFFSET(C35,-1,0)="s",OFFSET(C35,-1,0)=0),A35<>"s",A35>OFFSET(B35,-1,0)),OFFSET(B35,-1,0),A35))))) -> S | D35: =IF(OR(C35="S",C35=0),0,IF(ISERROR(K35),J35,SMALL(J35:K35,1))) -> 0 | E35: =IF($C35=1,OFFSET(E35,-1,0)+1,OFFSET(E35,-1,0)) -> 1 | F35: =IF($C35=1,0,IF($C35=2,OFFSET(F35,-1,0)+1,OFFSET(F35,-1,0))) -> 1 | G35: =IF(AND($C35<=2,$C35<>0),0,IF($C35=3,OFFSET(G35,-1,0)+1,OFFSET(G35,-1,0))) -> 4 | H35: =IF(AND($C35<=3,$C35<>0),0,IF($C35=4,OFFSET(H35,-1,0)+1,OFFSET(H35,-1,0))) -> 0 | I35: =IF(AND($C35<=4,$C35<>0),0,IF(AND($C35="S",$W35>0),OFFSET(I35,-1,0)+1,OFFSET(I35,-1,0))) -> 0 | J35: =IF(OR($C35="S",$C35=0),0,MATCH(0,OFFSET($D35,1,$C35,ROW($C$319)-ROW($C35)),0)) -> 0 | K35: =IF(OR($C35="S",$C35=0),0,MATCH(OFFSET($D35,0,$C35)+1,OFFSET($D35,1,$C35,ROW($C$319)-ROW($C35)),0)) -> 0 | M35: Serviço | N35: Serviço | O35: - | P35: SINAPI | Q35: 97644 | R35: REMOÇÃO DE PORTAS, DE FORMA MANUAL, SEM REAPROVEITAMENTO. AF_12/2017 | S35: M2 | T35: 3.36 | W35: 0 | X35: Referência: AGETOP - 20106
A36: S | B36: 3 | C36: S | D36: 0 | E36: 1 | F36: 1 | G36: 4 | H36: 0 | I36: 0 | J36: 0 | K36: 0 | M36: Serviço | N36: Serviço | O36: - | P36: AGETOP | Q36: 20118 | R36: DEM.ALVEN.TIJOLO S/REAP. C/TR.ATE CB. E CARGA | S36: m3 | T36: 0.11 | W36: 0
A37: 3 | B37: 3 | C37: 3 | D37: 2 | E37: 1 | F37: 1 | G37: 5 | H37: 0 | I37: 0 | J37: =IF(OR($C37="S",$C37=0),0,MATCH(0,OFFSET($D37,1,$C37,ROW($C$319)-ROW($C37)),0)) -> 4 | K37: =IF(OR($C37="S",$C37=0),0,MATCH(OFFSET($D37,0,$C37)+1,OFFSET($D37,1,$C37,ROW($C$319)-ROW($C37)),0)) -> 2 | M37: Nível 3 | N37: Nível 3 | O37: - | P37: SINAPI | R37: CENTRAL DE GÁS | S37: - | W37: 0
A38: S | B38: 3 | C38: S | D38: 0 | E38: 1 | F38: 1 | G38: 5 | H38: 0 | I38: 0 | J38: 0 | K38: 0 | M38: Serviço | N38: Serviço | O38: - | P38: AGETOP | Q38: 20121 | R38: DEM. MANUAL EM CONCR.SIMPLES C/TR.ATE CB.E CARGA (O.C.) | S38: m3 | T38: 0.1 | W38: 0
A39: 3 | B39: 3 | C39: 3 | D39: 2 | E39: 1 | F39: 1 | G39: 6 | H39: 0 | I39: 0 | J39: =IF(OR($C39="S",$C39=0),0,MATCH(0,OFFSET($D39,1,$C39,ROW($C$319)-ROW($C39)),0)) -> 2 | K39: =IF(OR($C39="S",$C39=0),0,MATCH(OFFSET($D39,0,$C39)+1,OFFSET($D39,1,$C39,ROW($C$319)-ROW($C39)),0)) ->  | M39: Nível 3 | N39: Nível 3 | O39: - | P39: AGETOP | R39: OUTROS | S39: - | W39: 0
A40: S | B40: 3 | C40: S | D40: 0 | E40: 1 | F40: 1 | G40: 6 | H40: 0 | I40: 0 | J40: 0 | K40: 0 | M40: Serviço | N40: Serviço | O40: - | P40: AGETOP | Q40: 21301 | R40: PLACA DE OBRA PLOTADA EM CHAPA METÁLICA 26 , AFIXADA EM CAVALETES DE MADEIRA DE LEI (VIGOTAS 6X12CM) - PADRÃO GOINFRA | S40: m2 | T40: 7.5 | W40: 0
A41: 2 | B41: 2 | C41: 2 | D41: 3 | E41: 1 | F41: 2 | G41: 0 | H41: 0 | I41: 0 | J41: 278 | K41: 3 | M41: Nível 2 | N41: Nível 2 | O41: - | P41: AGETOP | R41: TRANSPORTES | S41: - | W41: 0
A42: S | B42: 2 | C42: S | D42: 0 | E42: 1 | F42: 2 | G42: 0 | H42: 0 | I42: 0 | J42: 0 | K42: 0 | M42: Serviço | N42: Serviço | O42: - | P42: SINAPI | Q42: 72897 | R42: CARGA MANUAL DE ENTULHO EM CAMINHAO BASCULANTE 6 M3 | S42: M3 | T42: 7.69 | W42: 0
A43: S | B43: 2 | C43: S | D43: 0 | E43: 1 | F43: 2 | G43: 0 | H43: 0 | I43: 0 | J43: 0 | K43: 0 | M43: Serviço | N43: Serviço | O43: - | P43: SINAPI | Q43: 72900 | R43: TRANSPORTE DE ENTULHO COM CAMINHAO BASCULANTE 6 M3, RODOVIA PAVIMENTADA, DMT 0,5 A 1,0 KM | S43: M3 | T43: 7.69 | W43: 0
A44: 2 | B44: 2 | C44: 2 | D44: 7 | E44: 1 | F44: 3 | G44: 0 | H44: 0 | I44: 0 | J44: 275 | K44: 7 | M44: Nível 2 | N44: Nível 2 | O44: - | P44: AGETOP | R44: SERVIÇO EM TERRA | S44: - | W44: 0
A45: 3 | B45: 3 | C45: 3 | D45: 3 | E45: 1 | F45: 3 | G45: 1 | H45: 0 | I45: 0 | J45: 6 | K45: 3 | M45: Nível 3 | N45: Nível 3 | O45: - | P45: AGETOP | R45: AMPLIAÇÃO DA ÁREA DE SERVIÇOS | S45: - | W45: 0
A46: S | B46: 3 | C46: S | D46: 0 | E46: 1 | F46: 3 | G46: 1 | H46: 0 | I46: 0 | J46: 0 | K46: 0 | M46: Serviço | N46: Serviço | O46: - | P46: AGETOP | Q46: 41003 | R46: ATERRO INTERNO SEM APILOAM.C/TR.EM CARRINHO MÃO | S46: m3 | T46: 0.08 | W46: 0
A47: S | B47: 3 | C47: S | D47: 0 | E47: 1 | F47: 3 | G47: 1 | H47: 0 | I47: 0 | J47: 0 | K47: 0 | M47: Serviço | N47: Serviço | O47: - | P47: AGETOP | Q47: 41002 | R47: APILOAMENTO | S47: m2 | T47: 1.66 | W47: 0
A48: 3 | B48: 3 | C48: 3 | D48: 3 | E48: 1 | F48: 3 | G48: 2 | H48: 0 | I48: 0 | J48: =IF(OR($C48="S",$C48=0),0,MATCH(0,OFFSET($D48,1,$C48,ROW($C$319)-ROW($C48)),0)) -> 3 | K48: =IF(OR($C48="S",$C48=0),0,MATCH(OFFSET($D48,0,$C48)+1,OFFSET($D48,1,$C48,ROW($C$319)-ROW($C48)),0)) -> 13 | M48: Nível 3 | N48: Nível 3 | O48: - | P48: SINAPI | R48: CENTRAL DE GÁS | S48: - | W48: 0
A49: S | B49: 3 | C49: S | D49: 0 | E49: 1 | F49: 3 | G49: 2 | H49: 0 | I49: 0 | J49: 0 | K49: 0 | M49: Serviço | N49: Serviço | O49: - | P49: SINAPI | Q49: 93358 | R49: ESCAVAÇÃO MANUAL DE VALA COM PROFUNDIDADE MENOR OU IGUAL A 1,30 M. AF_03/2016 | S49: M3 | T49: 0.49 | W49: 0 | X49: Referência: AGETOP - 40101
A50: S | B50: 3 | C50: S | D50: 0 | E50: 1 | F50: 3 | G50: 2 | H50: 0 | I50: 0 | J50: 0 | K50: 0 | M50: Serviço | N50: Serviço | O50: - | P50: SINAPI | Q50: 96995 | R50: REATERRO MANUAL APILOADO COM SOQUETE. AF_10/2017 | S50: M3 | T50: 0.49 | W50: 0 | X50: Referência: AGETOP - 40902
A51: 2 | B51: 2 | C51: 2 | D51: 19 | E51: 1 | F51: 4 | G51: 0 | H51: 0 | I51: 0 | J51: =IF(OR($C51="S",$C51=0),0,MATCH(0,OFFSET($D51,1,$C51,ROW($C$319)-ROW($C51)),0)) -> 268 | K51: =IF(OR($C51="S",$C51=0),0,MATCH(OFFSET($D51,0,$C51)+1,OFFSET($D51,1,$C51,ROW($C$319)-ROW($C51)),0)) -> 19 | M51: Nível 2 | N51: Nível 2 | O51: - | P51: AGETOP | R51: FUNDAÇÕES E SONDAGENS | S51: - | W51: 0
A52: 3 | B52: 3 | C52: 3 | D52: 4 | E52: 1 | F52: 4 | G52: 1 | H52: 0 | I52: 0 | J52: 18 | K52: 4 | M52: Nível 3 | N52: Nível 3 | O52: - | P52: SINAPI | R52: ESTACAS | S52: - | W52: 0
A53: S | B53: 3 | C53: S | D53: 0 | E53: 1 | F53: 4 | G53: 1 | H53: 0 | I53: 0 | J53: 0 | K53: 0 | M53: Serviço | N53: Serviço | O53: - | P53: SINAPI | Q53: 98230 | R53: ESTACA BROCA DE CONCRETO, DIÂMETRO DE 30 CM, PROFUNDIDADE DE ATÉ 3 M, ESCAVAÇÃO MANUAL COM TRADO CONCHA, NÃO ARMADA. AF_03/2018 | S53: M | T53: 88 | W53: 0 | X53: Referência: AGETOP - 50302
A54: S | B54: 3 | C54: S | D54: 0 | E54: 1 | F54: 4 | G54: 1 | H54: 0 | I54: 0 | J54: 0 | K54: 0 | M54: Serviço | N54: Serviço | O54: - | P54: SINAPI | Q54: 96546 | R54: ARMAÇÃO DE BLOCO, VIGA BALDRAME OU SAPATA UTILIZANDO AÇO CA-50 DE 10 MM - MONTAGEM. AF_06/2017 | S54: KG | T54: 264 | W54: 0 | X54: Referência: AGETOP - 52005
A55: S | B55: 3 | C55: S | D55: 0 | E55: 1 | F55: 4 | G55: 1 | H55: 0 | I55: 0 | J55: 0 | K55: 0 | M55: Serviço | N55: Serviço | O55: - | P55: SINAPI | Q55: 96543 | R55: ARMAÇÃO DE BLOCO, VIGA BALDRAME E SAPATA UTILIZANDO AÇO CA-60 DE 5 MM - MONTAGEM. AF_06/2017 | S55: KG | T55: 87.18 | W55: 0 | X55: Referência: AGETOP - 52014
A56: 3 | B56: 3 | C56: 3 | D56: 5 | E56: 1 | F56: 4 | G56: 2 | H56: 0 | I56: 0 | J56: 14 | K56: 5 | M56: Nível 3 | N56: Nível 3 | O56: - | P56: SINAPI | R56: BLOCOS | S56: - | W56: 0
A57: S | B57: 3 | C57: S | D57: 0 | E57: 1 | F57: 4 | G57: 2 | H57: 0 | I57: 0 | J57: 0 | K57: 0 | M57: Serviço | N57: Serviço | O57: - | P57: SINAPI | Q57: 96522 | R57: ESCAVAÇÃO MANUAL PARA BLOCO DE COROAMENTO OU SAPATA, SEM PREVISÃO DE FÔRMA. AF_06/2017 | S57: M3 | T57: 4.75 | W57: 0 | X57: Referência: AGETOP - 50901
A58: S | B58: 3 | C58: S | D58: 0 | E58: 1 | F58: 4 | G58: 2 | H58: 0 | I58: 0 | J58: 0 | K58: 0 | M58: Serviço | N58: Serviço | O58: - | P58: AGETOP | Q58: 50902 | R58: APILOAMENTO (BLOCOS/SAPATAS) | S58: m2 | T58: 7.92 | W58: 0
A59: =CHOOSE(1+LOG(1+2*(ORÇAMENTO.Nivel="Nível 1")+4*(ORÇAMENTO.Nivel="Nível 2")+8*(ORÇAMENTO.Nivel="Nível 3")+16*(ORÇAMENTO.Nivel="Nível 4")+32*(ORÇAMENTO.Nivel="Serviço"),2),0,1,2,3,4,"S") -> S | B59: =IF(OR(C59="s",C59=0),OFFSET(B59,-1,0),C59) -> 3 | C59: =IF(OFFSET(C59,-1,0)="L",1,IF(OFFSET(C59,-1,0)=1,2,IF(OR(A59="s",A59=0),"S",IF(AND(OFFSET(C59,-1,0)=2,A59=4),3,IF(AND(OR(OFFSET(C59,-1,0)="s",OFFSET(C59,-1,0)=0),A59<>"s",A59>OFFSET(B59,-1,0)),OFFSET(B59,-1,0),A59))))) -> S | D59: =IF(OR(C59="S",C59=0),0,IF(ISERROR(K59),J59,SMALL(J59:K59,1))) -> 0 | E59: =IF($C59=1,OFFSET(E59,-1,0)+1,OFFSET(E59,-1,0)) -> 1 | F59: =IF($C59=1,0,IF($C59=2,OFFSET(F59,-1,0)+1,OFFSET(F59,-1,0))) -> 4 | G59: =IF(AND($C59<=2,$C59<>0),0,IF($C59=3,OFFSET(G59,-1,0)+1,OFFSET(G59,-1,0))) -> 2 | H59: =IF(AND($C59<=3,$C59<>0),0,IF($C59=4,OFFSET(H59,-1,0)+1,OFFSET(H59,-1,0))) -> 0 | I59: =IF(AND($C59<=4,$C59<>0),0,IF(AND($C59="S",$W59>0),OFFSET(I59,-1,0)+1,OFFSET(I59,-1,0))) -> 0 | J59: 0 | K59: 0 | M59: Serviço | N59: Serviço | O59: - | P59: AGETOP | Q59: 51027 | R59: LASTRO DE BRITA (OBRAS CIVIS) | S59: m3 | T59: 0.39 | W59: 0
A60: S | B60: 3 | C60: S | D60: 0 | E60: 1 | F60: 4 | G60: 2 | H60: 0 | I60: 0 | J60: 0 | K60: 0 | M60: Serviço | N60: Serviço | O60: - | P60: SINAPI | Q60: 96543 | R60: ARMAÇÃO DE BLOCO, VIGA BALDRAME E SAPATA UTILIZANDO AÇO CA-60 DE 5 MM - MONTAGEM. AF_06/2017 | S60: KG | T60: 51 | W60: 0 | X60: Referência: AGETOP - 52014
A61: 3 | B61: 3 | C61: 3 | D61: 9 | E61: 1 | F61: 4 | G61: 3 | H61: 0 | I61: 0 | J61: 9 | K61: 27 | M61: Nível 3 | N61: Nível 3 | O61: - | P61: SINAPI | R61: VIGAS BALDRAMES | S61: - | W61: 0
A62: S | B62: 3 | C62: S | D62: 0 | E62: 1 | F62: 4 | G62: 3 | H62: 0 | I62: 0 | J62: 0 | K62: 0 | M62: Serviço | N62: Serviço | O62: - | P62: SINAPI | Q62: 96527 | R62: ESCAVAÇÃO MANUAL DE VALA PARA VIGA BALDRAME, COM PREVISÃO DE FÔRMA. AF_06/2017 | S62: M3 | T62: 5.08 | W62: 0 | X62: Referência: AGETOP - 40101
A63: S | B63: 3 | C63: S | D63: 0 | E63: 1 | F63: 4 | G63: 3 | H63: 0 | I63: 0 | J63: 0 | K63: 0 | M63: Serviço | N63: Serviço | O63: - | P63: SINAPI | Q63: 96995 | R63: REATERRO MANUAL APILOADO COM SOQUETE. AF_10/2017 | S63: M3 | T63: 2.9 | W63: 0 | X63: Referência: AGETOP - 40902
A64: S | B64: 3 | C64: S | D64: 0 | E64: 1 | F64: 4 | G64: 3 | H64: 0 | I64: 0 | J64: 0 | K64: 0 | M64: Serviço | N64: Serviço | O64: - | P64: AGETOP | Q64: 60191 | R64: FORMA DE TABUA CINTA BALDRAME U=8 VEZES | S64: m2 | T64: 37.83 | W64: 0
A65: S | B65: 3 | C65: S | D65: 0 | E65: 1 | F65: 4 | G65: 3 | H65: 0 | I65: 0 | J65: 0 | K65: 0 | M65: Serviço | N65: Serviço | O65: - | P65: SINAPI | Q65: 94965 | R65: CONCRETO FCK = 25MPA, TRAÇO 1:2,3:2,7 (CIMENTO/ AREIA MÉDIA/ BRITA 1) - PREPARO MECÂNICO COM BETONEIRA 400 L. AF_07/2016 | S65: M3 | T65: 2.18 | W65: 0 | X65: Referência: AGETOP - 51030
A66: S | B66: 3 | C66: S | D66: 0 | E66: 1 | F66: 4 | G66: 3 | H66: 0 | I66: 0 | J66: 0 | K66: 0 | M66: Serviço | N66: Serviço | O66: - | P66: SINAPI | Q66: 74157/4 | R66: LANCAMENTO/APLICACAO MANUAL DE CONCRETO EM FUNDACOES | S66: M3 | T66: 2.18 | W66: 0 | X66: Referência: AGETOP - 51026
A67: S | B67: 3 | C67: S | D67: 0 | E67: 1 | F67: 4 | G67: 3 | H67: 0 | I67: 0 | J67: 0 | K67: 0 | M67: Serviço | N67: Serviço | O67: - | P67: SINAPI | Q67: 96545 | R67: ARMAÇÃO DE BLOCO, VIGA BALDRAME OU SAPATA UTILIZANDO AÇO CA-50 DE 8 MM - MONTAGEM. AF_06/2017 | S67: KG | T67: 82.81 | W67: 0 | X67: Referência: AGETOP - 52004
A68: S | B68: 3 | C68: S | D68: 0 | E68: 1 | F68: 4 | G68: 3 | H68: 0 | I68: 0 | J68: 0 | K68: 0 | M68: Serviço | N68: Serviço | O68: - | P68: SINAPI | Q68: 96546 | R68: ARMAÇÃO DE BLOCO, VIGA BALDRAME OU SAPATA UTILIZANDO AÇO CA-50 DE 10 MM - MONTAGEM. AF_06/2017 | S68: KG | T68: 14.45 | W68: 0 | X68: Referência: AGETOP - 52005
A69: S | B69: 3 | C69: S | D69: 0 | E69: 1 | F69: 4 | G69: 3 | H69: 0 | I69: 0 | J69: 0 | K69: 0 | M69: Serviço | N69: Serviço | O69: - | P69: SINAPI | Q69: 96543 | R69: ARMAÇÃO DE BLOCO, VIGA BALDRAME E SAPATA UTILIZANDO AÇO CA-60 DE 5 MM - MONTAGEM. AF_06/2017 | S69: KG | T69: 45 | W69: 0 | X69: Referência: AGETOP - 52014
A70: 2 | B70: 2 | C70: 2 | D70: 27 | E70: 1 | F70: 5 | G70: 0 | H70: 0 | I70: 0 | J70: 249 | K70: 27 | M70: Nível 2 | N70: Nível 2 | O70: - | P70: AGETOP | R70: ESTRUTURA | S70: - | W70: 0
A71: 3 | B71: 3 | C71: 3 | D71: 6 | E71: 1 | F71: 5 | G71: 1 | H71: 0 | I71: 0 | J71: 26 | K71: 6 | M71: Nível 3 | N71: Nível 3 | O71: - | P71: AGETOP | R71: PILARES | S71: - | W71: 0
A72: S | B72: 3 | C72: S | D72: 0 | E72: 1 | F72: 5 | G72: 1 | H72: 0 | I72: 0 | J72: 0 | K72: 0 | M72: Serviço | N72: Serviço | O72: - | P72: SINAPI | Q72: 92426 | R72: MONTAGEM E DESMONTAGEM DE FÔRMA DE PILARES RETANGULARES E ESTRUTURAS SIMILARES COM ÁREA MÉDIA DAS SEÇÕES MENOR OU IGUAL A 0,25 M², PÉ-DIREITO SIMPLES, EM CHAPA DE MADEIRA COMPENSADA RESINADA, 8 UTILIZAÇÕES. AF_12/2015 | S72: M2 | T72: 51.86 | W72: 0
A73: S | B73: 3 | C73: S | D73: 0 | E73: 1 | F73: 5 | G73: 1 | H73: 0 | I73: 0 | J73: 0 | K73: 0 | M73: Serviço | N73: Serviço | O73: - | P73: SINAPI | Q73: 94965 | R73: CONCRETO FCK = 25MPA, TRAÇO 1:2,3:2,7 (CIMENTO/ AREIA MÉDIA/ BRITA 1) - PREPARO MECÂNICO COM BETONEIRA 400 L. AF_07/2016 | S73: M3 | T73: 2.5 | W73: 0 | X73: Referência: AGETOP - 51030
A74: S | B74: 3 | C74: S | D74: 0 | E74: 1 | F74: 5 | G74: 1 | H74: 0 | I74: 0 | J74: 0 | K74: 0 | M74: Serviço | N74: Serviço | O74: - | P74: SINAPI | Q74: 92873 | R74: LANÇAMENTO COM USO DE BALDES, ADENSAMENTO E ACABAMENTO DE CONCRETO EM ESTRUTURAS. AF_12/2015 | S74: M3 | T74: 2.5 | W74: 0 | X74: Referência: AGETOP - 60801
A75: S | B75: 3 | C75: S | D75: 0 | E75: 1 | F75: 5 | G75: 1 | H75: 0 | I75: 0 | J75: 0 | K75: 0 | M75: Serviço | N75: Serviço | O75: - | P75: SINAPI | Q75: 92778 | R75: ARMAÇÃO DE PILAR OU VIGA DE UMA ESTRUTURA CONVENCIONAL DE CONCRETO ARMADO EM UMA EDIFICAÇÃO TÉRREA OU SOBRADO UTILIZANDO AÇO CA-50 DE 10,0 MM - MONTAGEM. AF_12/2015 | S75: KG | T75: 189.36 | W75: 0 | X75: Referência: AGETOP - 60305
A76: S | B76: 3 | C76: S | D76: 0 | E76: 1 | F76: 5 | G76: 1 | H76: 0 | I76: 0 | J76: 0 | K76: 0 | M76: Serviço | N76: Serviço | O76: - | P76: SINAPI | Q76: 92775 | R76: ARMAÇÃO DE PILAR OU VIGA DE UMA ESTRUTURA CONVENCIONAL DE CONCRETO ARMADO EM UMA EDIFICAÇÃO TÉRREA OU SOBRADO UTILIZANDO AÇO CA-60 DE 5,0 MM - MONTAGEM. AF_12/2015 | S76: KG | T76: 67.54 | W76: 0 | X76: Referência: AGETOP - 60314
A77: 3 | B77: 3 | C77: 3 | D77: 6 | E77: 1 | F77: 5 | G77: 2 | H77: 0 | I77: 0 | J77: 20 | K77: 6 | M77: Nível 3 | N77: Nível 3 | O77: - | R77: VIGAS DE COBERTURA | S77: - | W77: 0
A78: S | B78: 3 | C78: S | D78: 0 | E78: 1 | F78: 5 | G78: 2 | H78: 0 | I78: 0 | J78: 0 | K78: 0 | M78: Serviço | N78: Serviço | O78: - | P78: SINAPI | Q78: 92464 | R78: MONTAGEM E DESMONTAGEM DE FÔRMA DE VIGA, ESCORAMENTO METÁLICO, PÉ-DIREITO SIMPLES, EM CHAPA DE MADEIRA RESINADA, 8 UTILIZAÇÕES. AF_12/2015 | S78: M2 | T78: 55.08 | W78: 0 | X78: Referência: AGETOP - 60209
A79: S | B79: 3 | C79: S | D79: 0 | E79: 1 | F79: 5 | G79: 2 | H79: 0 | I79: 0 | J79: 0 | K79: 0 | M79: Serviço | N79: Serviço | O79: - | P79: SINAPI | Q79: 94965 | R79: CONCRETO FCK = 25MPA, TRAÇO 1:2,3:2,7 (CIMENTO/ AREIA MÉDIA/ BRITA 1) - PREPARO MECÂNICO COM BETONEIRA 400 L. AF_07/2016 | S79: M3 | T79: 3.18 | W79: 0 | X79: Referência: AGETOP - 51030
A80: S | B80: 3 | C80: S | D80: 0 | E80: 1 | F80: 5 | G80: 2 | H80: 0 | I80: 0 | J80: 0 | K80: 0 | M80: Serviço | N80: Serviço | O80: - | P80: SINAPI | Q80: 92873 | R80: LANÇAMENTO COM USO DE BALDES, ADENSAMENTO E ACABAMENTO DE CONCRETO EM ESTRUTURAS. AF_12/2015 | S80: M3 | T80: 3.18 | W80: 0 | X80: Referência: AGETOP - 60801
A81: S | B81: 3 | C81: S | D81: 0 | E81: 1 | F81: 5 | G81: 2 | H81: 0 | I81: 0 | J81: 0 | K81: 0 | M81: Serviço | N81: Serviço | O81: - | P81: SINAPI | Q81: 92777 | R81: ARMAÇÃO DE PILAR OU VIGA DE UMA ESTRUTURA CONVENCIONAL DE CONCRETO ARMADO EM UMA EDIFICAÇÃO TÉRREA OU SOBRADO UTILIZANDO AÇO CA-50 DE 8,0 MM - MONTAGEM. AF_12/2015 | S81: KG | T81: 134.45 | W81: 0 | X81: Referência: AGETOP - 60304
A82: S | B82: 3 | C82: S | D82: 0 | E82: 1 | F82: 5 | G82: 2 | H82: 0 | I82: 0 | J82: 0 | K82: 0 | M82: Serviço | N82: Serviço | O82: - | P82: SINAPI | Q82: 92775 | R82: ARMAÇÃO DE PILAR OU VIGA DE UMA ESTRUTURA CONVENCIONAL DE CONCRETO ARMADO EM UMA EDIFICAÇÃO TÉRREA OU SOBRADO UTILIZANDO AÇO CA-60 DE 5,0 MM - MONTAGEM. AF_12/2015 | S82: KG | T82: 64.81 | W82: 0 | X82: Referência: AGETOP - 60314
A83: 3 | B83: 3 | C83: 3 | D83: 5 | E83: 1 | F83: 5 | G83: 3 | H83: 0 | I83: 0 | J83: 14 | K83: 5 | M83: Nível 3 | N83: Nível 3 | O83: - | R83: LAJE | S83: - | W83: 0
A84: S | B84: 3 | C84: S | D84: 0 | E84: 1 | F84: 5 | G84: 3 | H84: 0 | I84: 0 | J84: 0 | K84: 0 | M84: Serviço | N84: Serviço | O84: - | P84: SINAPI | Q84: 92267 | R84: FABRICAÇÃO DE FÔRMA PARA LAJES, EM CHAPA DE MADEIRA COMPENSADA RESINADA, E = 17 MM. AF_12/2015 | S84: M2 | T84: 18.24 | W84: 0
A85: S | B85: 3 | C85: S | D85: 0 | E85: 1 | F85: 5 | G85: 3 | H85: 0 | I85: 0 | J85: 0 | K85: 0 | M85: Serviço | N85: Serviço | O85: - | P85: SINAPI | Q85: 94965 | R85: CONCRETO FCK = 25MPA, TRAÇO 1:2,3:2,7 (CIMENTO/ AREIA MÉDIA/ BRITA 1) - PREPARO MECÂNICO COM BETONEIRA 400 L. AF_07/2016 | S85: M3 | T85: 2.37 | W85: 0 | X85: Referência: AGETOP - 51030
A86: S | B86: 3 | C86: S | D86: 0 | E86: 1 | F86: 5 | G86: 3 | H86: 0 | I86: 0 | J86: 0 | K86: 0 | M86: Serviço | N86: Serviço | O86: - | P86: SINAPI | Q86: 92873 | R86: LANÇAMENTO COM USO DE BALDES, ADENSAMENTO E ACABAMENTO DE CONCRETO EM ESTRUTURAS. AF_12/2015 | S86: M3 | T86: 2.37 | W86: 0 | X86: Referência: AGETOP - 60801
A87: S | B87: 3 | C87: S | D87: 0 | E87: 1 | F87: 5 | G87: 3 | H87: 0 | I87: 0 | J87: 0 | K87: 0 | M87: Serviço | N87: Serviço | O87: - | P87: SINAPI | Q87: 92784 | R87: ARMAÇÃO DE LAJE DE UMA ESTRUTURA CONVENCIONAL DE CONCRETO ARMADO EM UMA EDIFICAÇÃO TÉRREA OU SOBRADO UTILIZANDO AÇO CA-60 DE 5,0 MM - MONTAGEM. AF_12/2015 | S87: KG | T87: 42.9 | W87: 0 | X87: Referência: AGETOP - 60314
A88: 3 | B88: 3 | C88: 3 | D88: 9 | E88: 1 | F88: 5 | G88: 4 | H88: 0 | I88: 0 | J88: 9 | M88: Nível 3 | N88: Nível 3 | O88: - | P88: SINAPI | R88: OUTROS | S88: - | W88: 0
A89: 4 | B89: 4 | C89: 4 | D89: 3 | E89: 1 | F89: 5 | G89: 4 | H89: 1 | I89: 0 | J89: 8 | K89: 3 | M89: Nível 4 | N89: Nível 4 | O89: - | P89: SINAPI | R89: AMPLIAÇÃO DA ÁREA DE SERVIÇOS | S89: - | W89: 0
A90: S | B90: 4 | C90: S | D90: 0 | E90: 1 | F90: 5 | G90: 4 | H90: 1 | I90: 0 | J90: 0 | K90: 0 | M90: Serviço | N90: Serviço | O90: - | P90: AGETOP | Q90: 61130 | R90: MURO ARRIMO PADRÃO GOINFRA EM CANALETA SEM REVESTIMENTO-(COM ALTURA ATÉ 2,50M)-INCLUSO FUNDAÇÃO | S90: m2 | T90: 3.57 | W90: 0
A91: S | B91: 4 | C91: S | D91: 0 | E91: 1 | F91: 5 | G91: 4 | H91: 1 | I91: 0 | J91: 0 | K91: 0 | M91: Serviço | N91: Serviço | O91: - | P91: AGETOP | Q91: 60010 | R91: VERGA/CONTRAVERGA EM CONCRETO ARMADO FCK = 20 MPA | S91: m3 | T91: 0.05 | W91: 0
A92: 4 | B92: 4 | C92: 4 | D92: 3 | E92: 1 | F92: 5 | G92: 4 | H92: 2 | I92: 0 | J92: 5 | K92: 3 | M92: Nível 4 | N92: Nível 4 | O92: - | P92: SINAPI | R92: EXECUÇÃO DE DUAS SALAS DE AULA MODELO PRÓPRIO | S92: - | W92: 0
A93: S | B93: 4 | C93: S | D93: 0 | E93: 1 | F93: 5 | G93: 4 | H93: 2 | I93: 0 | J93: 0 | K93: 0 | M93: Serviço | N93: Serviço | O93: - | P93: AGETOP | Q93: 61130 | R93: MURO ARRIMO PADRÃO GOINFRA EM CANALETA SEM REVESTIMENTO-(COM ALTURA ATÉ 2,50M)-INCLUSO FUNDAÇÃO | S93: m2 | T93: 11.2 | W93: 0
A94: S | B94: 4 | C94: S | D94: 0 | E94: 1 | F94: 5 | G94: 4 | H94: 2 | I94: 0 | J94: 0 | K94: 0 | M94: Serviço | N94: Serviço | O94: - | P94: AGETOP | Q94: 60010 | R94: VERGA/CONTRAVERGA EM CONCRETO ARMADO FCK = 20 MPA | S94: m3 | T94: 0.23 | W94: 0
A95: =CHOOSE(1+LOG(1+2*(ORÇAMENTO.Nivel="Nível 1")+4*(ORÇAMENTO.Nivel="Nível 2")+8*(ORÇAMENTO.Nivel="Nível 3")+16*(ORÇAMENTO.Nivel="Nível 4")+32*(ORÇAMENTO.Nivel="Serviço"),2),0,1,2,3,4,"S") -> 4 | B95: 4 | C95: 4 | D95: 2 | E95: 1 | F95: 5 | G95: 4 | H95: 3 | I95: 0 | J95: 2 | K95: 50 | M95: Nível 4 | N95: Nível 4 | O95: - | P95: SINAPI | R95: REFORMA GERAL | S95: - | W95: 0
A96: =CHOOSE(1+LOG(1+2*(ORÇAMENTO.Nivel="Nível 1")+4*(ORÇAMENTO.Nivel="Nível 2")+8*(ORÇAMENTO.Nivel="Nível 3")+16*(ORÇAMENTO.Nivel="Nível 4")+32*(ORÇAMENTO.Nivel="Serviço"),2),0,1,2,3,4,"S") -> S | B96: 4 | C96: S | D96: 0 | E96: 1 | F96: 5 | G96: 4 | H96: 3 | I96: 0 | J96: 0 | K96: 0 | M96: Serviço | N96: Serviço | O96: - | P96: AGETOP | Q96: 60010 | R96: VERGA/CONTRAVERGA EM CONCRETO ARMADO FCK = 20 MPA | S96: m3 | T96: 0.03 | W96: 0
A97: =CHOOSE(1+LOG(1+2*(ORÇAMENTO.Nivel="Nível 1")+4*(ORÇAMENTO.Nivel="Nível 2")+8*(ORÇAMENTO.Nivel="Nível 3")+16*(ORÇAMENTO.Nivel="Nível 4")+32*(ORÇAMENTO.Nivel="Serviço"),2),0,1,2,3,4,"S") -> 2 | B97: 2 | C97: 2 | D97: 31 | E97: 1 | F97: 6 | G97: 0 | H97: 0 | I97: 0 | J97: 222 | K97: 31 | M97: Nível 2 | N97: Nível 2 | O97: - | P97: AGETOP | R97: INSTALAÇÕES ELÉTRICAS | S97: - | W97: 0
A98: S | B98: 2 | C98: S | D98: 0 | E98: 1 | F98: 6 | G98: 0 | H98: 0 | I98: 0 | J98: 0 | K98: 0 | M98: Serviço | N98: Serviço | O98: - | P98: AGETOP | Q98: 70351 | R98: BRACADEIRA METALICA TIPO "U" DIAM. 3/4" | S98: Un | T98: 39 | W98: 0
A99: S | B99: 2 | C99: S | D99: 0 | E99: 1 | F99: 6 | G99: 0 | H99: 0 | I99: 0 | J99: 0 | K99: 0 | M99: Serviço | N99: Serviço | O99: - | P99: AGETOP | Q99: 70352 | R99: BRACADEIRA METALICA TIPO "U" DIAM. 1" | S99: Un | T99: 22 | W99: 0
A100: S | B100: 2 | C100: S | D100: 0 | E100: 1 | F100: 6 | G100: 0 | H100: 0 | I100: 0 | J100: 0 | K100: 0 | M100: Serviço | N100: Serviço | O100: - | P100: AGETOP | Q100: 70421 | R100: BUCHA E ARRUELA METALICA DIAM. 3/4" | S100: PR | T100: 39 | W100: 0
A101: S | B101: 2 | C101: S | D101: 0 | E101: 1 | F101: 6 | G101: 0 | H101: 0 | I101: 0 | J101: 0 | K101: 0 | M101: Serviço | N101: Serviço | O101: - | P101: AGETOP | Q101: 70422 | R101: BUCHA E ARRUELA METALICA DIAM. 1" | S101: PR | T101: 22 | W101: 0
A102: S | B102: 2 | C102: S | D102: 0 | E102: 1 | F102: 6 | G102: 0 | H102: 0 | I102: 0 | J102: 0 | K102: 0 | M102: Serviço | N102: Serviço | O102: - | P102: AGETOP | Q102: 70391 | R102: BUCHA DE NYLON S-6 | S102: Un | T102: 61 | W102: 0
A103: S | B103: 2 | C103: S | D103: 0 | E103: 1 | F103: 6 | G103: 0 | H103: 0 | I103: 0 | J103: 0 | K103: 0 | M103: Serviço | N103: Serviço | O103: - | P103: SINAPI | Q103: 91927 | R103: CABO DE COBRE FLEXÍVEL ISOLADO, 2,5 MM², ANTI-CHAMA 0,6/1,0 KV, PARA CIRCUITOS TERMINAIS - FORNECIMENTO E INSTALAÇÃO. AF_12/2015 | S103: M | T103: 375 | W103: 0 | X103: Referência: AGETOP - 70581
A104: S | B104: =IF(OR(C104="s",C104=0),OFFSET(B104,-1,0),C104) -> 2 | C104: =IF(OFFSET(C104,-1,0)="L",1,IF(OFFSET(C104,-1,0)=1,2,IF(OR(A104="s",A104=0),"S",IF(AND(OFFSET(C104,-1,0)=2,A104=4),3,IF(AND(OR(OFFSET(C104,-1,0)="s",OFFSET(C104,-1,0)=0),A104<>"s",A104>OFFSET(B104,-1,0)),OFFSET(B104,-1,0),A104))))) -> S | D104: =IF(OR(C104="S",C104=0),0,IF(ISERROR(K104),J104,SMALL(J104:K104,1))) -> 0 | E104: =IF($C104=1,OFFSET(E104,-1,0)+1,OFFSET(E104,-1,0)) -> 1 | F104: =IF($C104=1,0,IF($C104=2,OFFSET(F104,-1,0)+1,OFFSET(F104,-1,0))) -> 6 | G104: =IF(AND($C104<=2,$C104<>0),0,IF($C104=3,OFFSET(G104,-1,0)+1,OFFSET(G104,-1,0))) -> 0 | H104: =IF(AND($C104<=3,$C104<>0),0,IF($C104=4,OFFSET(H104,-1,0)+1,OFFSET(H104,-1,0))) -> 0 | I104: =IF(AND($C104<=4,$C104<>0),0,IF(AND($C104="S",$W104>0),OFFSET(I104,-1,0)+1,OFFSET(I104,-1,0))) -> 0 | J104: 0 | K104: 0 | M104: Serviço | N104: Serviço | O104: - | P104: SINAPI | Q104: 91929 | R104: CABO DE COBRE FLEXÍVEL ISOLADO, 4 MM², ANTI-CHAMA 0,6/1,0 KV, PARA CIRCUITOS TERMINAIS - FORNECIMENTO E INSTALAÇÃO. AF_12/2015 | S104: M | T104: 170 | W104: 0 | X104: Referência: AGETOP - 70582
A105: S | B105: 2 | C105: S | D105: 0 | E105: 1 | F105: 6 | G105: 0 | H105: 0 | I105: 0 | J105: 0 | K105: 0 | M105: Serviço | N105: Serviço | O105: - | P105: SINAPI | Q105: 92866 | R105: CAIXA SEXTAVADA 3" X 3", METÁLICA, INSTALADA EM LAJE - FORNECIMENTO E INSTALAÇÃO. AF_12/2015 | S105: UN | T105: 13 | W105: 0 | X105: Referência: AGETOP - 70680
A106: S | B106: 2 | C106: S | D106: 0 | E106: 1 | F106: 6 | G106: 0 | H106: 0 | I106: 0 | J106: 0 | K106: 0 | M106: Serviço | N106: Serviço | O106: - | P106: SINAPI | Q106: 92868 | R106: CAIXA RETANGULAR 4" X 2" MÉDIA (1,30 M DO PISO), METÁLICA, INSTALADA EM PAREDE - FORNECIMENTO E INSTALAÇÃO. AF_12/2015 | S106: UN | T106: 11 | W106: 0 | X106: Referência: AGETOP - 70691
A107: S | B107: 2 | C107: S | D107: 0 | E107: 1 | F107: 6 | G107: 0 | H107: 0 | I107: 0 | J107: 0 | K107: 0 | M107: Serviço | N107: Serviço | O107: - | P107: SINAPI | Q107: 95818 | R107: CONDULETE DE PVC, TIPO X, PARA ELETRODUTO DE PVC SOLDÁVEL DN 32 MM (1''), APARENTE - FORNECIMENTO E INSTALAÇÃO. AF_11/2016 | S107: UN | T107: 4 | W107: 0
A108: S | B108: 2 | C108: S | D108: 0 | E108: 1 | F108: 6 | G108: 0 | H108: 0 | I108: 0 | J108: 0 | K108: 0 | M108: Serviço | N108: Serviço | O108: - | P108: AGETOP | Q108: 70925 | R108: CONDULETE DE PVC - ADAPTADOR DE SAÍDA 3/4" | S108: un | T108: 3 | W108: 0
A109: S | B109: 2 | C109: S | D109: 0 | E109: 1 | F109: 6 | G109: 0 | H109: 0 | I109: 0 | J109: 0 | K109: 0 | M109: Serviço | N109: Serviço | O109: - | P109: SINAPI | Q109: 91902 | R109: CURVA 90 GRAUS PARA ELETRODUTO, PVC, ROSCÁVEL, DN 25 MM (3/4"), PARA CIRCUITOS TERMINAIS, INSTALADA EM LAJE - FORNECIMENTO E INSTALAÇÃO. AF_12/2015 | S109: UN | T109: 2 | W109: 0 | X109: Referência: AGETOP - 71141
A110: S | B110: 2 | C110: S | D110: 0 | E110: 1 | F110: 6 | G110: 0 | H110: 0 | I110: 0 | J110: 0 | K110: 0 | M110: Serviço | N110: Serviço | O110: - | P110: SINAPI | Q110: 91905 | R110: CURVA 90 GRAUS PARA ELETRODUTO, PVC, ROSCÁVEL, DN 32 MM (1"), PARA CIRCUITOS TERMINAIS, INSTALADA EM LAJE - FORNECIMENTO E INSTALAÇÃO. AF_12/2015 | S110: UN | T110: 5 | W110: 0 | X110: Referência: AGETOP - 71142
A111: S | B111: 2 | C111: S | D111: 0 | E111: 1 | F111: 6 | G111: 0 | H111: 0 | I111: 0 | J111: 0 | K111: 0 | M111: Serviço | N111: Serviço | O111: - | P111: SINAPI | Q111: 93653 | R111: DISJUNTOR MONOPOLAR TIPO DIN, CORRENTE NOMINAL DE 10A - FORNECIMENTO E INSTALAÇÃO. AF_04/2016 | S111: UN | T111: 3 | W111: 0
A112: S | B112: 2 | C112: S | D112: 0 | E112: 1 | F112: 6 | G112: 0 | H112: 0 | I112: 0 | J112: 0 | K112: 0 | M112: Serviço | N112: Serviço | O112: - | P112: SINAPI | Q112: 93654 | R112: DISJUNTOR MONOPOLAR TIPO DIN, CORRENTE NOMINAL DE 16A - FORNECIMENTO E INSTALAÇÃO. AF_04/2016 | S112: UN | T112: 2 | W112: 0
A113: S | B113: 2 | C113: S | D113: 0 | E113: 1 | F113: 6 | G113: 0 | H113: 0 | I113: 0 | J113: 0 | K113: 0 | M113: Serviço | N113: Serviço | O113: - | P113: AGETOP | Q113: 71184 | R113: DISPOSITIVO DE PROTEÇÃO CONTRA SURTOS (D.P.S.) 275V DE 8 A 40KA | S113: Un | T113: 3 | W113: 0
A114: S | B114: 2 | C114: S | D114: 0 | E114: 1 | F114: 6 | G114: 0 | H114: 0 | I114: 0 | J114: 0 | K114: 0 | M114: Serviço | N114: Serviço | O114: - | P114: SINAPI | Q114: 91844 | R114: ELETRODUTO FLEXÍVEL CORRUGADO, PVC, DN 25 MM (3/4"), PARA CIRCUITOS TERMINAIS, INSTALADO EM LAJE - FORNECIMENTO E INSTALAÇÃO. AF_12/2015 | S114: M | T114: 65 | W114: 0
A115: S | B115: 2 | C115: S | D115: 0 | E115: 1 | F115: 6 | G115: 0 | H115: 0 | I115: 0 | J115: =IF(OR($C115="S",$C115=0),0,MATCH(0,OFFSET($D115,1,$C115,ROW($C$319)-ROW($C115)),0)) -> 0 | K115: =IF(OR($C115="S",$C115=0),0,MATCH(OFFSET($D115,0,$C115)+1,OFFSET($D115,1,$C115,ROW($C$319)-ROW($C115)),0)) -> 0 | M115: Serviço | N115: Serviço | O115: - | P115: SINAPI | Q115: 91846 | R115: ELETRODUTO FLEXÍVEL CORRUGADO, PVC, DN 32 MM (1"), PARA CIRCUITOS TERMINAIS, INSTALADO EM LAJE - FORNECIMENTO E INSTALAÇÃO. AF_12/2015 | S115: M | T115: 10 | W115: 0
A116: S | B116: 2 | C116: S | D116: 0 | E116: 1 | F116: 6 | G116: 0 | H116: 0 | I116: 0 | J116: 0 | K116: 0 | M116: Serviço | N116: Serviço | O116: - | P116: SINAPI | Q116: 91871 | R116: ELETRODUTO RÍGIDO ROSCÁVEL, PVC, DN 25 MM (3/4"), PARA CIRCUITOS TERMINAIS, INSTALADO EM PAREDE - FORNECIMENTO E INSTALAÇÃO. AF_12/2015 | S116: M | T116: 30 | W116: 0 | X116: Referência: AGETOP - 71201
A117: S | B117: 2 | C117: S | D117: 0 | E117: 1 | F117: 6 | G117: 0 | H117: 0 | I117: 0 | J117: 0 | K117: 0 | M117: Serviço | N117: Serviço | O117: - | P117: SINAPI | Q117: 91872 | R117: ELETRODUTO RÍGIDO ROSCÁVEL, PVC, DN 32 MM (1"), PARA CIRCUITOS TERMINAIS, INSTALADO EM PAREDE - FORNECIMENTO E INSTALAÇÃO. AF_12/2015 | S117: M | T117: 20 | W117: 0 | X117: Referência: AGETOP - 71202
A118: S | B118: 2 | C118: S | D118: 0 | E118: 1 | F118: 6 | G118: 0 | H118: 0 | I118: 0 | J118: 0 | K118: 0 | M118: Serviço | N118: Serviço | O118: - | P118: AGETOP | Q118: 71321 | R118: FITA DE AUTO FUSAO, ROLO E 10,00 MM | S118: Un | T118: 1 | W118: 0
A119: S | B119: 2 | C119: S | D119: 0 | E119: 1 | F119: 6 | G119: 0 | H119: 0 | I119: 0 | J119: 0 | K119: 0 | M119: Serviço | N119: Serviço | O119: - | P119: AGETOP | Q119: 71331 | R119: FITA ISOLANTE, ROLO DE 20,00 M | S119: Un | T119: 2 | W119: 0
A120: S | B120: 2 | C120: S | D120: 0 | E120: 1 | F120: 6 | G120: 0 | H120: 0 | I120: 0 | J120: 0 | K120: 0 | M120: Serviço | N120: Serviço | O120: - | P120: SINAPI | Q120: 91955 | R120: INTERRUPTOR PARALELO (1 MÓDULO), 10A/250V, INCLUINDO SUPORTE E PLACA - FORNECIMENTO E INSTALAÇÃO. AF_12/2015 | S120: UN | T120: 3 | W120: 0 | X120: Referência: AGETOP - 71431
A121: S | B121: 2 | C121: S | D121: 0 | E121: 1 | F121: 6 | G121: 0 | H121: 0 | I121: 0 | J121: 0 | K121: 0 | M121: Serviço | N121: Serviço | O121: - | P121: COMPOSIÇÃO | Q121: COMP 387_SEE | R121: LÂMPADA LED TUBULAR 18W | S121: UN | T121: 26 | W121: 0
A122: S | B122: 2 | C122: S | D122: 0 | E122: 1 | F122: 6 | G122: 0 | H122: 0 | I122: 0 | J122: 0 | K122: 0 | M122: Serviço | N122: Serviço | O122: - | P122: SINAPI | Q122: 97585 | R122: LUMINÁRIA TIPO CALHA, DE SOBREPOR, COM 2 LÂMPADAS TUBULARES DE 18 W - FORNECIMENTO E INSTALAÇÃO. AF_11/2017 | S122: UN | T122: 13 | W122: 0
A123: S | B123: 2 | C123: S | D123: 0 | E123: 1 | F123: 6 | G123: 0 | H123: 0 | I123: 0 | J123: 0 | K123: 0 | M123: Serviço | N123: Serviço | O123: - | P123: AGETOP | Q123: 71615 | R123: LUMINÁRIA TIPO ARANDELA DE USO EXTERNO - BASE E-27 | S123: un | T123: 12 | W123: 0
A124: S | B124: 2 | C124: S | D124: 0 | E124: 1 | F124: 6 | G124: 0 | H124: 0 | I124: 0 | J124: 0 | K124: 0 | M124: Serviço | N124: Serviço | O124: - | P124: SINAPI | Q124: 91884 | R124: LUVA PARA ELETRODUTO, PVC, ROSCÁVEL, DN 25 MM (3/4"), PARA CIRCUITOS TERMINAIS, INSTALADA EM PAREDE - FORNECIMENTO E INSTALAÇÃO. AF_12/2015 | S124: UN | T124: 39 | W124: 0 | X124: Referência: AGETOP - 71741
A125: S | B125: 2 | C125: S | D125: 0 | E125: 1 | F125: 6 | G125: 0 | H125: 0 | I125: 0 | J125: 0 | K125: 0 | M125: Serviço | N125: Serviço | O125: - | P125: SINAPI | Q125: 91885 | R125: LUVA PARA ELETRODUTO, PVC, ROSCÁVEL, DN 32 MM (1"), PARA CIRCUITOS TERMINAIS, INSTALADA EM PAREDE - FORNECIMENTO E INSTALAÇÃO. AF_12/2015 | S125: UN | T125: 1 | W125: 0 | X125: Referência: AGETOP - 71742
A126: S | B126: 2 | C126: S | D126: 0 | E126: 1 | F126: 6 | G126: 0 | H126: 0 | I126: 0 | J126: 0 | K126: 0 | M126: Serviço | N126: Serviço | O126: - | P126: AGETOP | Q126: 71861 | R126: PARAFUSO P/BUCHA S-6 | S126: Un | T126: 61 | W126: 0
A127: S | B127: 2 | C127: S | D127: 0 | E127: 1 | F127: 6 | G127: 0 | H127: 0 | I127: 0 | J127: 0 | K127: 0 | M127: Serviço | N127: Serviço | O127: - | P127: SINAPI | Q127: 91996 | R127: TOMADA MÉDIA DE EMBUTIR (1 MÓDULO), 2P+T 10 A, INCLUINDO SUPORTE E PLACA - FORNECIMENTO E INSTALAÇÃO. AF_12/2015 | S127: UN | T127: 8 | W127: 0 | X127: Referência: AGETOP - 72578
A128: 2 | B128: 2 | C128: 2 | D128: 50 | E128: 1 | F128: 7 | G128: 0 | H128: 0 | I128: 0 | J128: 191 | K128: 50 | M128: Nível 2 | N128: Nível 2 | O128: - | P128: AGETOP | R128: INSTALAÇÕES HIDROSSANITÁRIAS | S128: - | W128: 0
A129: 3 | B129: 3 | C129: 3 | D129: 8 | E129: 1 | F129: 7 | G129: 1 | H129: 0 | I129: 0 | J129: 49 | K129: 8 | M129: Nível 3 | N129: Nível 3 | O129: - | P129: SINAPI | R129: PEÇAS E ACESSÓRIOS | S129: - | W129: 0
A130: 4 | B130: 4 | C130: 4 | D130: 5 | E130: 1 | F130: 7 | G130: 1 | H130: 1 | I130: 0 | J130: 7 | K130: 5 | M130: Nível 4 | N130: Nível 4 | O130: - | P130: SINAPI | R130: PIA E ACESSÓRIOS | S130: - | W130: 0
A131: S | B131: 4 | C131: S | D131: 0 | E131: 1 | F131: 7 | G131: 1 | H131: 1 | I131: 0 | J131: 0 | K131: 0 | M131: Serviço | N131: Serviço | O131: - | P131: AGETOP | Q131: 80810 | R131: TORNEIRA DE PAREDE PARA TANQUE COM AREJADOR DIÂMETRO DE 1/2" E 3/4" | S131: Un | T131: 2 | W131: 0
A132: S | B132: 4 | C132: S | D132: 0 | E132: 1 | F132: 7 | G132: 1 | H132: 1 | I132: 0 | J132: 0 | K132: 0 | M132: Serviço | N132: Serviço | O132: - | P132: AGETOP | Q132: 80820 | R132: SIFAO P/TANQUE 1" X 1.1/2" - PVC | S132: Un | T132: 2 | W132: 0
A133: S | B133: 4 | C133: S | D133: 0 | E133: 1 | F133: 7 | G133: 1 | H133: 1 | I133: 0 | J133: 0 | K133: 0 | M133: Serviço | N133: Serviço | O133: - | P133: AGETOP | Q133: 80830 | R133: VALVULA P/TANQUE METALICA DIAM.1" S/LADRAO | S133: Un | T133: 2 | W133: 0
A134: S | B134: 4 | C134: S | D134: 0 | E134: 1 | F134: 7 | G134: 1 | H134: 1 | I134: 0 | J134: 0 | K134: 0 | M134: Serviço | N134: Serviço | O134: - | P134: SINAPI | Q134: 86874 | R134: TANQUE DE LOUÇA BRANCA SUSPENSO, 18L OU EQUIVALENTE - FORNECIMENTO E INSTALAÇÃO. AF_12/2013 | S134: UN | T134: 2 | W134: 0
A135: 4 | B135: 4 | C135: 4 | D135: 2 | E135: 1 | F135: 7 | G135: 1 | H135: 2 | I135: 0 | J135: 2 | K135: 7 | M135: Nível 4 | N135: Nível 4 | O135: - | P135: SINAPI | R135: REGISTROS | S135: - | W135: 0
A136: S | B136: 4 | C136: S | D136: 0 | E136: 1 | F136: 7 | G136: 1 | H136: 2 | I136: 0 | J136: 0 | K136: 0 | M136: Serviço | N136: Serviço | O136: - | P136: AGETOP | Q136: 80926 | R136: REGISTRO DE GAVETA C/CANOPLA DIAMETRO 3/4" | S136: Un | T136: 1 | W136: 0
A137: 3 | B137: 3 | C137: 3 | D137: 21 | E137: 1 | F137: 7 | G137: 2 | H137: 0 | I137: 0 | J137: 41 | K137: 21 | M137: Nível 3 | N137: Nível 3 | O137: - | P137: SINAPI | R137: ÁGUA FRIA | S137: - | W137: 0
A138: 4 | B138: 4 | C138: 4 | D138: 2 | E138: 1 | F138: 7 | G138: 2 | H138: 1 | I138: 0 | J138: 20 | K138: 2 | M138: Nível 4 | N138: Nível 4 | O138: - | P138: SINAPI | R138: TUBOS DE PVC SOLDÁVEL | S138: - | W138: 0
A139: S | B139: 4 | C139: S | D139: 0 | E139: 1 | F139: 7 | G139: 2 | H139: 1 | I139: 0 | J139: 0 | K139: 0 | M139: Serviço | N139: Serviço | O139: - | P139: SINAPI | Q139: 89402 | R139: TUBO, PVC, SOLDÁVEL, DN 25MM, INSTALADO EM RAMAL DE DISTRIBUIÇÃO DE ÁGUA - FORNECIMENTO E INSTALAÇÃO. AF_12/2014 | S139: M | T139: 12 | W139: 0 | X139: Referência: AGETOP - 81003
A140: 4 | B140: 4 | C140: 4 | D140: 2 | E140: 1 | F140: 7 | G140: 2 | H140: 2 | I140: 0 | J140: 18 | K140: 2 | M140: Nível 4 | N140: Nível 4 | O140: - | P140: SINAPI | R140: ADAPTADORES DE PVC SOLDÁVEL | S140: - | W140: 0
A141: S | B141: 4 | C141: S | D141: 0 | E141: 1 | F141: 7 | G141: 2 | H141: 2 | I141: 0 | J141: 0 | K141: 0 | M141: Serviço | N141: Serviço | O141: - | P141: SINAPI | Q141: 89538 | R141: ADAPTADOR CURTO COM BOLSA E ROSCA PARA REGISTRO, PVC, SOLDÁVEL, DN 25MM X 3/4, INSTALADO EM PRUMADA DE ÁGUA - FORNECIMENTO E INSTALAÇÃO. AF_12/2014 | S141: UN | T141: 2 | W141: 0
A142: 4 | B142: 4 | C142: 4 | D142: 3 | E142: 1 | F142: 7 | G142: 2 | H142: 3 | I142: 0 | J142: 16 | K142: 3 | M142: Nível 4 | N142: Nível 4 | O142: - | P142: SINAPI | R142: CAP | S142: - | W142: 0
A143: S | B143: 4 | C143: S | D143: 0 | E143: 1 | F143: 7 | G143: 2 | H143: 3 | I143: 0 | J143: 0 | K143: 0 | M143: Serviço | N143: Serviço | O143: - | P143: AGETOP | Q143: 81232 | R143: CAP PVC ROSCAVEL DIAMETRO 3/4" (25 mm) | S143: Un | T143: 2 | W143: 0
A144: S | B144: 4 | C144: S | D144: 0 | E144: 1 | F144: 7 | G144: 2 | H144: 3 | I144: 0 | J144: 0 | K144: 0 | M144: Serviço | N144: Serviço | O144: - | P144: AGETOP | Q144: 81258 | R144: CAP PVC SOLDAVEL DIAMETRO 110 mm | S144: Un | T144: 2 | W144: 0
A145: 4 | B145: 4 | C145: 4 | D145: 3 | E145: 1 | F145: 7 | G145: 2 | H145: 4 | I145: 0 | J145: 13 | K145: 3 | M145: Nível 4 | N145: Nível 4 | O145: - | P145: SINAPI | R145: JOELHO | S145: - | T145: 3 | W145: 0
A146: S | B146: 4 | C146: S | D146: 0 | E146: 1 | F146: 7 | G146: 2 | H146: 4 | I146: 0 | J146: 0 | K146: 0 | M146: Serviço | N146: Serviço | O146: - | P146: AGETOP | Q146: 81360 | R146: JOELHO RED.90 GRAUS SOLD.C/BUCHA LATAO 25X1/2" | S146: Un | T146: 1 | W146: 0
A147: S | B147: 4 | C147: S | D147: 0 | E147: 1 | F147: 7 | G147: 2 | H147: 4 | I147: 0 | J147: 0 | K147: 0 | M147: Serviço | N147: Serviço | O147: - | P147: SINAPI | Q147: 89409 | R147: JOELHO 45 GRAUS, PVC, SOLDÁVEL, DN 25MM, INSTALADO EM RAMAL DE DISTRIBUIÇÃO DE ÁGUA - FORNECIMENTO E INSTALAÇÃO. AF_12/2014 | S147: UN | T147: 4 | W147: 0
A148: 4 | B148: 4 | C148: 4 | D148: 3 | E148: 1 | F148: 7 | G148: 2 | H148: 5 | I148: 0 | J148: 10 | K148: 3 | M148: Nível 4 | N148: Nível 4 | O148: - | P148: SINAPI | R148: TÊ | S148: - | W148: 0
A149: S | B149: 4 | C149: S | D149: 0 | E149: 1 | F149: 7 | G149: 2 | H149: 5 | I149: 0 | J149: 0 | K149: 0 | M149: Serviço | N149: Serviço | O149: - | P149: SINAPI | Q149: 89617 | R149: TE, PVC, SOLDÁVEL, DN 25MM, INSTALADO EM PRUMADA DE ÁGUA - FORNECIMENTO E INSTALAÇÃO. AF_12/2014 | S149: UN | T149: 1 | W149: 0
A150: S | B150: 4 | C150: S | D150: 0 | E150: 1 | F150: 7 | G150: 2 | H150: 5 | I150: 0 | J150: 0 | K150: 0 | M150: Serviço | N150: Serviço | O150: - | P150: AGETOP | Q150: 81444 | R150: TE 90 GR.SOLD.C/BUC.LATAO NA BOLSA CENT.25X25X3/4" | S150: Un | T150: 1 | W150: 0
A151: 4 | B151: 4 | C151: 4 | D151: 2 | E151: 1 | F151: 7 | G151: 2 | H151: 6 | I151: 0 | J151: 7 | K151: 2 | M151: Nível 4 | N151: Nível 4 | O151: - | P151: SINAPI | R151: LUVAS | S151: - | W151: 0
A152: S | B152: 4 | C152: S | D152: 0 | E152: 1 | F152: 7 | G152: 2 | H152: 6 | I152: 0 | J152: 0 | K152: 0 | M152: Serviço | N152: Serviço | O152: - | P152: SINAPI | Q152: 89379 | R152: LUVA DE CORRER, PVC, SOLDÁVEL, DN 25MM, INSTALADO EM RAMAL OU SUB-RAMAL DE ÁGUA - FORNECIMENTO E INSTALAÇÃO. AF_12/2014 | S152: UN | T152: 2 | W152: 0
A153: 4 | B153: 4 | C153: 4 | D153: 3 | E153: 1 | F153: 7 | G153: 2 | H153: 7 | I153: 0 | J153: 5 | K153: 3 | M153: Nível 4 | N153: Nível 4 | O153: - | P153: SINAPI | R153: ADESIVOS | S153: - | W153: 0
A154: S | B154: 4 | C154: S | D154: 0 | E154: 1 | F154: 7 | G154: 2 | H154: 7 | I154: 0 | J154: 0 | K154: 0 | M154: Serviço | N154: Serviço | O154: - | P154: AGETOP | Q154: 81501 | R154: ADESIVO PLASTICO - FRASCO 850 G | S154: Un | T154: 1 | W154: 0
A155: S | B155: 4 | C155: S | D155: 0 | E155: 1 | F155: 7 | G155: 2 | H155: 7 | I155: 0 | J155: 0 | K155: 0 | M155: Serviço | N155: Serviço | O155: - | P155: AGETOP | Q155: 81504 | R155: SOLUCAO LIMPADORA 1000 CM3 | S155: Un | T155: 1 | W155: 0
A156: 4 | B156: 4 | C156: 4 | D156: 2 | E156: 1 | F156: 7 | G156: 2 | H156: 8 | I156: 0 | J156: 2 | M156: Nível 4 | N156: Nível 4 | O156: - | P156: SINAPI | R156: CURVAS | S156: - | W156: 0
A157: S | B157: 4 | C157: S | D157: 0 | E157: 1 | F157: 7 | G157: 2 | H157: 8 | I157: 0 | J157: 0 | K157: 0 | M157: Serviço | N157: Serviço | O157: - | P157: SINAPI | Q157: 89410 | R157: CURVA 90 GRAUS, PVC, SOLDÁVEL, DN 25MM, INSTALADO EM RAMAL DE DISTRIBUIÇÃO DE ÁGUA - FORNECIMENTO E INSTALAÇÃO. AF_12/2014 | S157: UN | T157: 1 | W157: 0
A158: 3 | B158: 3 | C158: 3 | D158: 18 | E158: 1 | F158: 7 | G158: 3 | H158: 0 | I158: 0 | J158: 20 | K158: 18 | M158: Nível 3 | N158: Nível 3 | O158: - | P158: SINAPI | R158: ESGOTO SANITÁRIO | S158: - | W158: 0
A159: 4 | B159: 4 | C159: 4 | D159: 4 | E159: 1 | F159: 7 | G159: 3 | H159: 1 | I159: 0 | J159: 17 | K159: 4 | M159: Nível 4 | N159: Nível 4 | O159: - | P159: SINAPI | R159: CORPO DE CAIXA SIFONADA / RALO | S159: - | W159: 0
A160: =CHOOSE(1+LOG(1+2*(ORÇAMENTO.Nivel="Nível 1")+4*(ORÇAMENTO.Nivel="Nível 2")+8*(ORÇAMENTO.Nivel="Nível 3")+16*(ORÇAMENTO.Nivel="Nível 4")+32*(ORÇAMENTO.Nivel="Serviço"),2),0,1,2,3,4,"S") -> S | B160: 4 | C160: S | D160: 0 | E160: 1 | F160: 7 | G160: 3 | H160: 1 | I160: 0 | J160: 0 | K160: 0 | M160: Serviço | N160: Serviço | O160: - | P160: AGETOP | Q160: 81681 | R160: CORPO RALO SECO CILINDRICO 100 X 40 | S160: Un | T160: 1 | W160: 0
A161: S | B161: 4 | C161: S | D161: 0 | E161: 1 | F161: 7 | G161: 3 | H161: 1 | I161: 0 | J161: 0 | K161: 0 | M161: Serviço | N161: Serviço | O161: - | P161: AGETOP | Q161: 81695 | R161: PROLONGAMENTO PARA CAIXA SIFONADA 100 MM | S161: M | T161: 1 | W161: 0
A162: S | B162: 4 | C162: S | D162: 0 | E162: 1 | F162: 7 | G162: 3 | H162: 1 | I162: 0 | J162: 0 | K162: 0 | M162: Serviço | N162: Serviço | O162: - | P162: AGETOP | Q162: 81790 | R162: GRELHA REDONDA BRANCA DIAM. 100 MM | S162: Un | T162: 1 | W162: 0
A163: 4 | B163: 4 | C163: 4 | D163: 2 | E163: 1 | F163: 7 | G163: 3 | H163: 2 | I163: 0 | J163: 13 | K163: 2 | M163: Nível 4 | N163: Nível 4 | O163: - | P163: SINAPI | R163: CURVAS | S163: - | W163: 0
A164: S | B164: 4 | C164: S | D164: 0 | E164: 1 | F164: 7 | G164: 3 | H164: 2 | I164: 0 | J164: 0 | K164: 0 | M164: Serviço | N164: Serviço | O164: - | P164: SINAPI | Q164: 89748 | R164: CURVA CURTA 90 GRAUS, PVC, SERIE NORMAL, ESGOTO PREDIAL, DN 100 MM, JUNTA ELÁSTICA, FORNECIDO E INSTALADO EM RAMAL DE DESCARGA OU RAMAL DE ESGOTO SANITÁRIO. AF_12/2014 | S164: UN | T164: 1 | W164: 0
A165: 4 | B165: 4 | C165: 4 | D165: 4 | E165: 1 | F165: 7 | G165: 3 | H165: 3 | I165: 0 | J165: 11 | K165: 4 | M165: Nível 4 | N165: Nível 4 | O165: - | P165: SINAPI | R165: JOELHOS | S165: - | W165: 0
A166: S | B166: 4 | C166: S | D166: 0 | E166: 1 | F166: 7 | G166: 3 | H166: 3 | I166: 0 | J166: 0 | K166: 0 | M166: Serviço | N166: Serviço | O166: - | P166: SINAPI | Q166: 89726 | R166: JOELHO 45 GRAUS, PVC, SERIE NORMAL, ESGOTO PREDIAL, DN 40 MM, JUNTA SOLDÁVEL, FORNECIDO E INSTALADO EM RAMAL DE DESCARGA OU RAMAL DE ESGOTO SANITÁRIO. AF_12/2014 | S166: UN | T166: 2 | W166: 0
A167: S | B167: 4 | C167: S | D167: 0 | E167: 1 | F167: 7 | G167: 3 | H167: 3 | I167: 0 | J167: 0 | K167: 0 | M167: Serviço | N167: Serviço | O167: - | P167: AGETOP | Q167: 81927 | R167: JOELHO 90 GRAUS C/ANEL 40 mm | S167: Un | T167: 2 | W167: 0
A168: S | B168: =IF(OR(C168="s",C168=0),OFFSET(B168,-1,0),C168) -> 4 | C168: =IF(OFFSET(C168,-1,0)="L",1,IF(OFFSET(C168,-1,0)=1,2,IF(OR(A168="s",A168=0),"S",IF(AND(OFFSET(C168,-1,0)=2,A168=4),3,IF(AND(OR(OFFSET(C168,-1,0)="s",OFFSET(C168,-1,0)=0),A168<>"s",A168>OFFSET(B168,-1,0)),OFFSET(B168,-1,0),A168))))) -> S | D168: =IF(OR(C168="S",C168=0),0,IF(ISERROR(K168),J168,SMALL(J168:K168,1))) -> 0 | E168: =IF($C168=1,OFFSET(E168,-1,0)+1,OFFSET(E168,-1,0)) -> 1 | F168: =IF($C168=1,0,IF($C168=2,OFFSET(F168,-1,0)+1,OFFSET(F168,-1,0))) -> 7 | G168: =IF(AND($C168<=2,$C168<>0),0,IF($C168=3,OFFSET(G168,-1,0)+1,OFFSET(G168,-1,0))) -> 3 | H168: =IF(AND($C168<=3,$C168<>0),0,IF($C168=4,OFFSET(H168,-1,0)+1,OFFSET(H168,-1,0))) -> 3 | I168: =IF(AND($C168<=4,$C168<>0),0,IF(AND($C168="S",$W168>0),OFFSET(I168,-1,0)+1,OFFSET(I168,-1,0))) -> 0 | J168: 0 | K168: 0 | M168: Serviço | N168: Serviço | O168: - | P168: AGETOP | Q168: 81938 | R168: JOELHO 90 GRAUS DIAMETRO 100 MM | S168: Un | T168: 1 | W168: 0
A169: 4 | B169: 4 | C169: 4 | D169: 2 | E169: 1 | F169: 7 | G169: 3 | H169: 4 | I169: 0 | J169: 7 | K169: 2 | M169: Nível 4 | N169: Nível 4 | O169: - | P169: SINAPI | R169: JUNÇÕES | S169: - | W169: 0
A170: S | B170: 4 | C170: S | D170: 0 | E170: 1 | F170: 7 | G170: 3 | H170: 4 | I170: 0 | J170: 0 | K170: 0 | M170: Serviço | N170: Serviço | O170: - | P170: SINAPI | Q170: 89834 | R170: JUNÇÃO SIMPLES, PVC, SERIE NORMAL, ESGOTO PREDIAL, DN 100 X 100 MM, JUNTA ELÁSTICA, FORNECIDO E INSTALADO EM PRUMADA DE ESGOTO SANITÁRIO OU VENTILAÇÃO. AF_12/2014 | S170: UN | T170: 1 | W170: 0 | X170: Referência: AGETOP - 81975
A171: 4 | B171: 4 | C171: 4 | D171: 2 | E171: 1 | F171: 7 | G171: 3 | H171: 5 | I171: 0 | J171: 5 | K171: 2 | M171: Nível 4 | N171: Nível 4 | O171: - | P171: SINAPI | R171: LUVAS | S171: - | W171: 0
A172: S | B172: 4 | C172: S | D172: 0 | E172: 1 | F172: 7 | G172: 3 | H172: 5 | I172: 0 | J172: 0 | K172: 0 | M172: Serviço | N172: Serviço | O172: - | P172: SINAPI | Q172: 89778 | R172: LUVA SIMPLES, PVC, SERIE NORMAL, ESGOTO PREDIAL, DN 100 MM, JUNTA ELÁSTICA, FORNECIDO E INSTALADO EM RAMAL DE DESCARGA OU RAMAL DE ESGOTO SANITÁRIO. AF_12/2014 | S172: UN | T172: 1 | W172: 0 | X172: Referência: AGETOP - 82004
A173: 4 | B173: 4 | C173: 4 | D173: 3 | E173: 1 | F173: 7 | G173: 3 | H173: 6 | I173: 0 | J173: 3 | M173: Nível 4 | N173: Nível 4 | O173: - | P173: SINAPI | R173: TUBOS | S173: - | W173: 0
A174: S | B174: 4 | C174: S | D174: 0 | E174: 1 | F174: 7 | G174: 3 | H174: 6 | I174: 0 | J174: 0 | K174: 0 | M174: Serviço | N174: Serviço | O174: - | P174: SINAPI | Q174: 89711 | R174: TUBO PVC, SERIE NORMAL, ESGOTO PREDIAL, DN 40 MM, FORNECIDO E INSTALADO EM RAMAL DE DESCARGA OU RAMAL DE ESGOTO SANITÁRIO. AF_12/2014 | S174: M | T174: 6 | W174: 0 | X174: Referência: AGETOP - 82301
A175: S | B175: 4 | C175: S | D175: 0 | E175: 1 | F175: 7 | G175: 3 | H175: 6 | I175: 0 | J175: 0 | K175: 0 | M175: Serviço | N175: Serviço | O175: - | P175: SINAPI | Q175: 89800 | R175: TUBO PVC, SERIE NORMAL, ESGOTO PREDIAL, DN 100 MM, FORNECIDO E INSTALADO EM PRUMADA DE ESGOTO SANITÁRIO OU VENTILAÇÃO. AF_12/2014 | S175: M | T175: 6 | W175: 0
A176: 3 | B176: 3 | C176: 3 | D176: 2 | E176: 1 | F176: 7 | G176: 4 | H176: 0 | I176: 0 | J176: 2 | M176: Nível 3 | N176: Nível 3 | O176: - | P176: SINAPI | R176: OUTROS | S176: - | W176: 0
A177: S | B177: 3 | C177: S | D177: 0 | E177: 1 | F177: 7 | G177: 4 | H177: 0 | I177: 0 | J177: 0 | K177: 0 | M177: Serviço | N177: Serviço | O177: - | P177: AGETOP | Q177: 81829 | R177: CAIXA DE INSPEÇÃO - TAMPA EM CONCRETO ARMADO 25 MPA E=5CM | S177: m2 | T177: 1 | W177: 0
A178: 2 | B178: 2 | C178: 2 | D178: 37 | E178: 1 | F178: 8 | G178: 0 | H178: 0 | I178: 0 | J178: 141 | K178: 37 | M178: Nível 2 | N178: Nível 2 | O178: - | P178: AGETOP | R178: INSTALAÇÕES ESPECIAIS | S178: - | W178: 0
A179: 3 | B179: 3 | C179: 3 | D179: 29 | E179: 1 | F179: 8 | G179: 1 | H179: 0 | I179: 0 | J179: =IF(OR($C179="S",$C179=0),0,MATCH(0,OFFSET($D179,1,$C179,ROW($C$319)-ROW($C179)),0)) -> 36 | K179: =IF(OR($C179="S",$C179=0),0,MATCH(OFFSET($D179,0,$C179)+1,OFFSET($D179,1,$C179,ROW($C$319)-ROW($C179)),0)) -> 29 | M179: Nível 3 | N179: Nível 3 | O179: - | P179: SINAPI | R179: CENTRAL DE GÁS | S179: - | W179: 0
A180: S | B180: 3 | C180: S | D180: 0 | E180: 1 | F180: 8 | G180: 1 | H180: 0 | I180: 0 | J180: 0 | K180: 0 | M180: Serviço | N180: Serviço | O180: - | P180: AGETOP | Q180: 91007 | R180: CENTRAL DE GÁS PADRÃO GOINFRA SEM INSTALAÇÕES (1+1 CILINDRO 45 KG) | S180: Un | T180: 1 | W180: 0
A181: S | B181: 3 | C181: S | D181: 0 | E181: 1 | F181: 8 | G181: 1 | H181: 0 | I181: 0 | J181: 0 | K181: 0 | M181: Serviço | N181: Serviço | O181: - | P181: AGETOP | Q181: 91023 | R181: UNIÃO S/BRONZE PRETA 3/4" NPT 300 LBS | S181: Un | T181: 3 | W181: 0
A182: S | B182: 3 | C182: S | D182: 0 | E182: 1 | F182: 8 | G182: 1 | H182: 0 | I182: 0 | J182: 0 | K182: 0 | M182: Serviço | N182: Serviço | O182: - | P182: COMPOSIÇÃO | Q182: COMP 382_SEE | R182: TE DE REDUCAO DE FERRO GALVANIZADO, COM ROSCA BSP, DE 3/4" X 1/2" | S182: UN | T182: 1 | W182: 0
A183: S | B183: 3 | C183: S | D183: 0 | E183: 1 | F183: 8 | G183: 1 | H183: 0 | I183: 0 | J183: 0 | K183: 0 | M183: Serviço | N183: Serviço | O183: - | P183: COMPOSIÇÃO | Q183: COMP 383_SEE | R183: BUCHA DE REDUCAO DE FERRO GALVANIZADO, COM ROSCA BSP, DE 1/2" X 1/4" | S183: UN | T183: 3 | W183: 0
A184: S | B184: 3 | C184: S | D184: 0 | E184: 1 | F184: 8 | G184: 1 | H184: 0 | I184: 0 | J184: 0 | K184: 0 | M184: Serviço | N184: Serviço | O184: - | P184: AGETOP | Q184: 91021 | R184: LUVA GALVANIZADO DE REDUÇÃO 3/4" X 1/2" (GÁS) | S184: Un | T184: 2 | W184: 0
A185: S | B185: 3 | C185: S | D185: 0 | E185: 1 | F185: 8 | G185: 1 | H185: 0 | I185: 0 | J185: 0 | K185: 0 | M185: Serviço | N185: Serviço | O185: - | P185: SINAPI | Q185: 92692 | R185: NIPLE, EM FERRO GALVANIZADO, CONEXÃO ROSQUEADA, DN 15 (1/2"), INSTALADO EM RAMAIS E SUB-RAMAIS DE GÁS - FORNECIMENTO E INSTALAÇÃO. AF_12/2015 | S185: UN | T185: 6 | W185: 0
A186: S | B186: 3 | C186: S | D186: 0 | E186: 1 | F186: 8 | G186: 1 | H186: 0 | I186: 0 | J186: 0 | K186: 0 | M186: Serviço | N186: Serviço | O186: - | P186: AGETOP | Q186: 91031 | R186: NIPLE DUPLO 300 PSI 3/4" | S186: Un | T186: 6 | W186: 0
A187: S | B187: 3 | C187: S | D187: 0 | E187: 1 | F187: 8 | G187: 1 | H187: 0 | I187: 0 | J187: 0 | K187: 0 | M187: Serviço | N187: Serviço | O187: - | P187: COMPOSIÇÃO | Q187: COMP 212_SEE | R187: NIPLE DE REDUÇÃO 1/2" X 1/4" BSP | S187: UN | T187: 4 | W187: 0
A188: S | B188: 3 | C188: S | D188: 0 | E188: 1 | F188: 8 | G188: 1 | H188: 0 | I188: 0 | J188: 0 | K188: 0 | M188: Serviço | N188: Serviço | O188: - | P188: COMPOSIÇÃO | Q188: COMP 213_SEE | R188: NIPLE DE REDUÇÃO 3/4" X 1/2" BSP | S188: UN | T188: 4 | W188: 0
A189: S | B189: 3 | C189: S | D189: 0 | E189: 1 | F189: 8 | G189: 1 | H189: 0 | I189: 0 | J189: 0 | K189: 0 | M189: Serviço | N189: Serviço | O189: - | P189: SINAPI | Q189: 92688 | R189: TUBO DE AÇO GALVANIZADO COM COSTURA, CLASSE MÉDIA, CONEXÃO ROSQUEADA, DN 20 (3/4"), INSTALADO EM RAMAIS E SUB-RAMAIS DE GÁS - FORNECIMENTO E INSTALAÇÃO. AF_12/2015 | S189: M | T189: 24 | W189: 0
A190: S | B190: 3 | C190: S | D190: 0 | E190: 1 | F190: 8 | G190: 1 | H190: 0 | I190: 0 | J190: 0 | K190: 0 | M190: Serviço | N190: Serviço | O190: - | P190: SINAPI | Q190: 92701 | R190: JOELHO 90 GRAUS, EM FERRO GALVANIZADO, CONEXÃO ROSQUEADA, DN 20 (3/4"), INSTALADO EM RAMAIS E SUB-RAMAIS DE GÁS - FORNECIMENTO E INSTALAÇÃO. AF_12/2015 | S190: UN | T190: 8 | W190: 0
A191: S | B191: 3 | C191: S | D191: 0 | E191: 1 | F191: 8 | G191: 1 | H191: 0 | I191: 0 | J191: 0 | K191: 0 | M191: Serviço | N191: Serviço | O191: - | P191: COMPOSIÇÃO | Q191: COMP 237_SEE | R191: FITA ANTICORROSIVA | S191: M | T191: 10 | W191: 0
A192: S | B192: 3 | C192: S | D192: 0 | E192: 1 | F192: 8 | G192: 1 | H192: 0 | I192: 0 | J192: 0 | K192: 0 | M192: Serviço | N192: Serviço | O192: - | P192: AGETOP | Q192: 91025 | R192: VÁLVULA ESFERICA LATÃO 3/4" | S192: Un | T192: 3 | W192: 0
A193: S | B193: 3 | C193: S | D193: 0 | E193: 1 | F193: 8 | G193: 1 | H193: 0 | I193: 0 | J193: 0 | K193: 0 | M193: Serviço | N193: Serviço | O193: - | P193: AGETOP | Q193: 91019 | R193: TE PRETO 90º 3/4" NPT 300 LBS | S193: Un | T193: 2 | W193: 0
A194: S | B194: 3 | C194: S | D194: 0 | E194: 1 | F194: 8 | G194: 1 | H194: 0 | I194: 0 | J194: 0 | K194: 0 | M194: Serviço | N194: Serviço | O194: - | P194: COMPOSIÇÃO | Q194: COMP 542_SEE | R194: VÁLVULA UGV 3/4" (S) LATÃO | S194: UN | T194: 2 | W194: 0
A195: S | B195: 3 | C195: S | D195: 0 | E195: 1 | F195: 8 | G195: 1 | H195: 0 | I195: 0 | J195: 0 | K195: 0 | M195: Serviço | N195: Serviço | O195: - | P195: COMPOSIÇÃO | Q195: COMP 543_SEE | R195: VÁLVULA UGV 1/2" (S) LATÃO | S195: UN | T195: 2 | W195: 0
A196: S | B196: 3 | C196: S | D196: 0 | E196: 1 | F196: 8 | G196: 1 | H196: 0 | I196: 0 | J196: 0 | K196: 0 | M196: Serviço | N196: Serviço | O196: - | P196: AGETOP | Q196: 91029 | R196: VALVULA DE RETENÇÃO LATÃO 1/2" X 7/16" NPT | S196: Un | T196: 2 | W196: 0
A197: S | B197: 3 | C197: S | D197: 0 | E197: 1 | F197: 8 | G197: 1 | H197: 0 | I197: 0 | J197: 0 | K197: 0 | M197: Serviço | N197: Serviço | O197: - | P197: COMPOSIÇÃO | Q197: COMP 211_SEE | R197: REGULADOR DE 2º ESTÁGIO 5KG/H | S197: UN | T197: 2 | W197: 0
A198: S | B198: 3 | C198: S | D198: 0 | E198: 1 | F198: 8 | G198: 1 | H198: 0 | I198: 0 | J198: 0 | K198: 0 | M198: Serviço | N198: Serviço | O198: - | P198: COMPOSIÇÃO | Q198: COMP 210_SEE | R198: REGULADOR DE 1º ESTÁGIO 60KG/H MODELO AP-40 COM MANÔMETRO | S198: UN | T198: 1 | W198: 0
A199: S | B199: 3 | C199: S | D199: 0 | E199: 1 | F199: 8 | G199: 1 | H199: 0 | I199: 0 | J199: 0 | K199: 0 | M199: Serviço | N199: Serviço | O199: - | P199: AGETOP | Q199: 85003 | R199: EXTINTOR PO QUIMICO SECO (6 KG) - CAPACIDADE EXTINTORA 20 BC | S199: Un | T199: 1 | W199: 0
A200: S | B200: 3 | C200: S | D200: 0 | E200: 1 | F200: 8 | G200: 1 | H200: 0 | I200: 0 | J200: 0 | K200: 0 | M200: Serviço | N200: Serviço | O200: - | P200: COMPOSIÇÃO | Q200: COMP 235_SEE | R200: PLACA DE SINALIZAÇÃO EM PVC COD 01 - (300X300) PROIBIDO FUMAR | S200: UN | T200: 2 | W200: 0
A201: S | B201: 3 | C201: S | D201: 0 | E201: 1 | F201: 8 | G201: 1 | H201: 0 | I201: 0 | J201: 0 | K201: 0 | M201: Serviço | N201: Serviço | O201: - | P201: COMPOSIÇÃO | Q201: COMP 236_SEE | R201: PLACA DE SINALIZAÇÃO EM PVC COD 06 - (300X300) PERIGO INFLAMÁVEL | S201: UN | T201: 2 | W201: 0
A202: S | B202: 3 | C202: S | D202: 0 | E202: 1 | F202: 8 | G202: 1 | H202: 0 | I202: 0 | J202: 0 | K202: 0 | M202: Serviço | N202: Serviço | O202: - | P202: AGETOP | Q202: 91043 | R202: BRAÇADEIRA METALICA TIPO "D" DIAM. 3/4" | S202: Un | T202: 7 | W202: 0
A203: S | B203: 3 | C203: S | D203: 0 | E203: 1 | F203: 8 | G203: 1 | H203: 0 | I203: 0 | J203: 0 | K203: 0 | M203: Serviço | N203: Serviço | O203: - | P203: AGETOP | Q203: 71863 | R203: PARAFUSO P/BUCHA S-10 | S203: Un | T203: 14 | W203: 0
A204: S | B204: 3 | C204: S | D204: 0 | E204: 1 | F204: 8 | G204: 1 | H204: 0 | I204: 0 | J204: 0 | K204: 0 | M204: Serviço | N204: Serviço | O204: - | P204: AGETOP | Q204: 70393 | R204: BUCHA DE NYLON S-10 | S204: Un | T204: 14 | W204: 0
A205: S | B205: 3 | C205: S | D205: 0 | E205: 1 | F205: 8 | G205: 1 | H205: 0 | I205: 0 | J205: 0 | K205: 0 | M205: Serviço | N205: Serviço | O205: - | P205: AGETOP | Q205: 91045 | R205: SUPORTE PARA COLETOR | S205: Un | T205: 2 | W205: 0
... 187 more rows

Sheet Resumo
B3: UNIDADE ESCOLAR | G3: CÓDIGO INEP
B4: =Orçamento!$O$4 -> CENTRO DE ATENDIMENTO EDUCACIONAL ESPECIALIZADO DE IPORÁ | G4: =Orçamento!V4 -> 52070069
B6: OBRA | G6: CIDADE
B7: =Orçamento!$O$7 -> REFORMA | G7: =Orçamento!$V$7 -> IPORÁ
B9: ENDEREÇO | G9: CRE
B10: =Orçamento!$R$10 -> AV DR NETO ESQ. C/ RUA GOIÂNIA S/N, CENTRO, CEP:76200-000 | G10: =Orçamento!$O$10 -> IPORÁ
B12: REFERÊNCIA | D12: DATA | G12: ÁREA TOTAL CONSTRUÍDA (M²)
B13: =CONCATENATE("AGETOP E SINAPI - ",Orçamento!$T$10) -> AGETOP E SINAPI - DESONERADA | D13: =Orçamento!$S$7 -> 2020-04-06 | G13: =Orçamento!$V$13 -> 643.1
A14: FILTRO
B15: RESUMO GERAL DO ORÇAMENTO
A16: ↓ | B16: ITEM | C16: DESCRIÇÃO DOS SERVIÇOS | E16: UNID | F16: QUANT | G16: PREÇO SEM BDI | H16: PREÇO COM BDI | I16: PARTICIP. (%)
A17: =IF(H17>0,"F","") ->  | B17: 1. | C17: =Orçamento!$P372 -> REFORMA | E17: =IF(C17<>"","UN","") -> UN | F17: =IF(C17<>"",1,"") -> 1 | G17: =IFERROR(Orçamento!S372,"-") -> 0 | H17: =IFERROR(Orçamento!V372,"") -> 0 | I17: =Orçamento!X372 -> 100
A18: =IF(H18>0,"F","") ->  | B18: 2. | C18: =Orçamento!$P373 ->  | E18: =IF(C18<>"","UN","") ->  | F18: =IF(C18<>"",1,"") ->  | G18: =IFERROR(Orçamento!S373,"-") -> 0 | H18: =IFERROR(Orçamento!V373,"") -> 0 | I18: =Orçamento!X373 -> 0
A19: =IF(H19>0,"F","") ->  | B19: 3. | C19: =Orçamento!$P374 ->  | G19: =IFERROR(Orçamento!S374,"-") -> 0 | H19: =IFERROR(Orçamento!V374,"") -> 0 | I19: =Orçamento!X374 -> 0
B20: 4. | C20: =Orçamento!$P375 ->  | G20: =IFERROR(Orçamento!S375,"-") -> 0 | H20: =IFERROR(Orçamento!V375,"") -> 0 | I20: =Orçamento!X375 -> 0
B21: 5. | C21: =Orçamento!$P376 ->  | G21: =IFERROR(Orçamento!S376,"-") -> 0 | H21: =IFERROR(Orçamento!V376,"") -> 0 | I21: =Orçamento!X376 -> 0
B22: 6. | C22: =Orçamento!$P377 ->  | G22: =IFERROR(Orçamento!S377,"-") -> 0 | H22: =IFERROR(Orçamento!V377,"") -> 0 | I22: =Orçamento!X377 -> 0
B23: 7. | C23: =Orçamento!$P378 ->  | G23: =IFERROR(Orçamento!S378,"-") -> 0 | H23: =IFERROR(Orçamento!V378,"") -> 0 | I23: =Orçamento!X378 -> 0
B24: 8. | C24: =Orçamento!$P379 ->  | G24: =IFERROR(Orçamento!S379,"-") -> 0 | H24: =IFERROR(Orçamento!V379,"") -> 0 | I24: =Orçamento!X379 -> 0
B25: 9. | C25: =Orçamento!$P380 ->  | G25: =IFERROR(Orçamento!S380,"-") -> 0 | H25: =IFERROR(Orçamento!V380,"") -> 0 | I25: =Orçamento!X380 -> 0
B26: 10. | C26: =Orçamento!$P381 ->  | G26: =IFERROR(Orçamento!S381,"-") -> 0 | H26: =IFERROR(Orçamento!V381,"") -> 0 | I26: =Orçamento!X381 -> 0
B27: 11. | C27: =Orçamento!$P382 ->  | G27: =IFERROR(Orçamento!S382,"-") -> 0 | H27: =IFERROR(Orçamento!V382,"") -> 0 | I27: =Orçamento!X382 -> 0
B28: 12. | C28: =Orçamento!$P383 ->  | G28: =IFERROR(Orçamento!S383,"-") -> 0 | H28: =IFERROR(Orçamento!V383,"") -> 0 | I28: =Orçamento!X383 -> 0
B29: 13. | C29: =Orçamento!$P384 ->  | G29: =IFERROR(Orçamento!S384,"-") -> 0 | H29: =IFERROR(Orçamento!V384,"") -> 0 | I29: =Orçamento!X384 -> 0
B30: 14. | C30: =Orçamento!$P385 ->  | G30: =IFERROR(Orçamento!S385,"-") -> 0 | H30: =IFERROR(Orçamento!V385,"") -> 0 | I30: =Orçamento!X385 -> 0
B31: 15. | C31: =Orçamento!$P386 ->  | G31: =IFERROR(Orçamento!S386,"-") -> 0 | H31: =IFERROR(Orçamento!V386,"") -> 0 | I31: =Orçamento!X386 -> 0
B32: 16. | C32: =Orçamento!$P387 ->  | G32: =IFERROR(Orçamento!S387,"-") -> 0 | H32: =IFERROR(Orçamento!V387,"") -> 0 | I32: =Orçamento!X387 -> 0
B33: 17. | C33: =Orçamento!$P388 ->  | G33: =IFERROR(Orçamento!S388,"-") -> 0 | H33: =IFERROR(Orçamento!V388,"") -> 0 | I33: =Orçamento!X388 -> 0
B34: 18. | C34: =Orçamento!$P389 ->  | G34: =IFERROR(Orçamento!S389,"-") -> 0 | H34: =IFERROR(Orçamento!V389,"") -> 0 | I34: =Orçamento!X389 -> 0
B35: 19. | C35: =Orçamento!$P390 ->  | G35: =IFERROR(Orçamento!S390,"-") -> 0 | H35: =IFERROR(Orçamento!V390,"") -> 0 | I35: =Orçamento!X390 -> 0
B36: 20. | C36: =Orçamento!$P391 ->  | G36: =IFERROR(Orçamento!S391,"-") -> 0 | H36: =IFERROR(Orçamento!V391,"") -> 0 | I36: =Orçamento!X391 -> 0
A37: F | B37: TOTAL GERAL DO ORÇAMENTO (R$) | G37: =SUM(G17:G36) -> 0 | H37: =SUM(H17:H36) -> 0 | I37: =SUM(I17:I36) -> 100
A38: F
A39: F

Sheet Somatório
B3: UNIDADE ESCOLAR | E3: CÓDIGO INEP
B4: =Orçamento!$O$4 -> CENTRO DE ATENDIMENTO EDUCACIONAL ESPECIALIZADO DE IPORÁ | E4: =Orçamento!V4 -> 52070069
B6: OBRA | E6: CIDADE
B7: =Orçamento!$O$7 -> REFORMA | E7: =Orçamento!$V$7 -> IPORÁ
H8: DESONERADA
B9: ENDEREÇO | E9: CRE
B10: =Orçamento!$R$10 -> AV DR NETO ESQ. C/ RUA GOIÂNIA S/N, CENTRO, CEP:76200-000 | E10: =Orçamento!$O$10 -> IPORÁ
B12: REFERÊNCIA | D12: DATA | E12: ÁREA TOTAL CONSTRUÍDA (M²)
B13: =CONCATENATE("AGETOP E SINAPI - ",Orçamento!$T$10) -> AGETOP E SINAPI - DESONERADA | D13: =Orçamento!$S$7 -> 2020-04-06 | E13: =Orçamento!$V$13 -> 643.1
A14: FILTRO
B15: SOMATÓRIO DE SERVIÇOS
A16: ↓ | B16: ITEM | C16: DESCRIÇÃO DOS SERVIÇOS | D16: PREÇO SEM BDI (R$) | E16: PREÇO COM BDI (R$) | F16: PARTIC. ( % )
A17: =IF(D17>0,"F","") ->  | B17: a. | C17: =Orçamento!P338 -> SERVIÇOS PRELIMINARES | D17: =Orçamento!S338 -> 0 | E17: =Orçamento!V338 -> 0 | F17: =Orçamento!X338 -> 0
A18: =IF(D18>0,"F","") ->  | B18: b. | C18: =Orçamento!P339 -> TRANSPORTES | D18: =Orçamento!S339 -> 0 | E18: =Orçamento!V339 -> 0 | F18: =Orçamento!X339 -> 0
B19: c. | C19: =Orçamento!P340 -> SERVIÇO EM TERRA | D19: =Orçamento!S340 -> 0 | E19: =Orçamento!V340 -> 0 | F19: =Orçamento!X340 -> 0
B20: d. | C20: =Orçamento!P341 -> FUNDAÇÕES E SONDAGENS | D20: =Orçamento!S341 -> 0 | E20: =Orçamento!V341 -> 0 | F20: =Orçamento!X341 -> 0
B21: e. | C21: =Orçamento!P342 -> ESTRUTURA | D21: =Orçamento!S342 -> 0 | E21: =Orçamento!V342 -> 0 | F21: =Orçamento!X342 -> 0
B22: f. | C22: =Orçamento!P343 -> INSTALAÇÕES ELÉTRICAS | D22: =Orçamento!S343 -> 0 | E22: =Orçamento!V343 -> 0 | F22: =Orçamento!X343 -> 0
B23: g. | C23: =Orçamento!P344 -> INSTALAÇÕES HIDROSSANITÁRIAS | D23: =Orçamento!S344 -> 0 | E23: =Orçamento!V344 -> 0 | F23: =Orçamento!X344 -> 0
B24: h. | C24: =Orçamento!P345 -> INSTALAÇÕES ESPECIAIS | D24: =Orçamento!S345 -> 0 | E24: =Orçamento!V345 -> 0 | F24: =Orçamento!X345 -> 0
B25: i. | C25: =Orçamento!P346 -> ALVENARIAS E DIVISÓRIAS | D25: =Orçamento!S346 -> 0 | E25: =Orçamento!V346 -> 0 | F25: =Orçamento!X346 -> 0
B26: j. | C26: =Orçamento!P347 -> ALVENARIA AUTO-PORTANTE | D26: =Orçamento!S347 -> 0 | E26: =Orçamento!V347 -> 0 | F26: =Orçamento!X347 -> 0
B27: k. | C27: =Orçamento!P348 -> IMPERMEABILIZAÇÃO | D27: =Orçamento!S348 -> 0 | E27: =Orçamento!V348 -> 0 | F27: =Orçamento!X348 -> 0
B28: l. | C28: =Orçamento!P349 -> ISOLAMENTO TÉRMICO E ACÚSTICO | D28: =Orçamento!S349 -> 0 | E28: =Orçamento!V349 -> 0 | F28: =Orçamento!X349 -> 0
B29: m. | C29: =Orçamento!P350 -> ESTRUTURA DE MADEIRA | D29: =Orçamento!S350 -> 0 | E29: =Orçamento!V350 -> 0 | F29: =Orçamento!X350 -> 0
B30: n. | C30: =Orçamento!P351 -> ESTRUTURAS METÁLICAS | D30: =Orçamento!S351 -> 0 | E30: =Orçamento!V351 -> 0 | F30: =Orçamento!X351 -> 0
B31: o. | C31: =Orçamento!P352 -> COBERTURAS | D31: =Orçamento!S352 -> 0 | E31: =Orçamento!V352 -> 0 | F31: =Orçamento!X352 -> 0
B32: p. | C32: =Orçamento!P353 -> ESQUADRIAS DE MADEIRA | D32: =Orçamento!S353 -> 0 | E32: =Orçamento!V353 -> 0 | F32: =Orçamento!X353 -> 0
B33: q. | C33: =Orçamento!P354 -> ESQUADRIAS METÁLICAS | D33: =Orçamento!S354 -> 0 | E33: =Orçamento!V354 -> 0 | F33: =Orçamento!X354 -> 0
B34: r. | C34: =Orçamento!P355 -> VIDROS | D34: =Orçamento!S355 -> 0 | E34: =Orçamento!V355 -> 0 | F34: =Orçamento!X355 -> 0
B35: s. | C35: =Orçamento!P356 -> REVESTIMENTO DE PAREDE | D35: =Orçamento!S356 -> 0 | E35: =Orçamento!V356 -> 0 | F35: =Orçamento!X356 -> 0
B36: t. | C36: =Orçamento!P357 -> FORROS | D36: =Orçamento!S357 -> 0 | E36: =Orçamento!V357 -> 0 | F36: =Orçamento!X357 -> 0
B37: u. | C37: =Orçamento!P358 -> REVESTIMENTO DE PISO | D37: =Orçamento!S358 -> 0 | E37: =Orçamento!V358 -> 0 | F37: =Orçamento!X358 -> 0
B38: v. | C38: =Orçamento!P359 -> FERRAGENS | D38: =Orçamento!S359 -> 0 | E38: =Orçamento!V359 -> 0 | F38: =Orçamento!X359 -> 0
B39: w. | C39: =Orçamento!P360 -> MARCENARIA | D39: =Orçamento!S360 -> 0 | E39: =Orçamento!V360 -> 0 | F39: =Orçamento!X360 -> 0
B40: x. | C40: =Orçamento!P361 -> ADMINISTRAÇÃO | D40: =Orçamento!S361 -> 0 | E40: =Orçamento!V361 -> 0 | F40: =Orçamento!X361 -> 0
B41: y. | C41: =Orçamento!P362 -> PINTURA | D41: =Orçamento!S362 -> 0 | E41: =Orçamento!V362 -> 0 | F41: =Orçamento!X362 -> 0
B42: z. | C42: =Orçamento!P363 -> DIVERSOS | D42: =Orçamento!S363 -> 0 | E42: =Orçamento!V363 -> 0 | F42: =Orçamento!X363 -> 0
A43: F | B43: TOTAL GERAL DO ORÇAMENTO | D43: =SUM(D17:D42) -> 0 | E43: =SUM(E17:E42) -> 0 | F43: =SUM(F17:F42) -> 0
B45: (*) Para itens da AGETOP, os vidros não estão inclusos nas esquadrias e já foram considerados os custos de contramarco para as esquadrias de alumínio;

Sheet Cronog_60_Dias
B3: UNIDADE ESCOLAR | I3: PRAZO
B4: =Orçamento!$O$4 -> CENTRO DE ATENDIMENTO EDUCACIONAL ESPECIALIZADO DE IPORÁ | I4: 60 DIAS CORRIDOS
B6: OBRA | I6: DATA
B7: =Orçamento!$O$7 -> REFORMA | I7: =Orçamento!$S$7 -> 2020-04-06
B9: LOCAL | I9: ÁREA TOTAL CONSTRUÍDA (M²)
A10: FILTRO | B10: =Orçamento!$V$7 -> IPORÁ | I10: =Orçamento!$V$13 -> 643.1
B12: CRONOGRAMA - FÍSICO FINANCEIRO
A13: ↓ | B13: CUSTO TOTAL: | C13: =D93 -> 0 | D13: VALOR | E13: Dias: | F13: 30 | J13: 60 | N13: TOTAL
B14: DESCRIÇÃO DOS SERVIÇOS | E14: % | F14: 1ª PARCELA | J14: 2ª PARCELA
A15: =IF(D15>0,"F","") ->  | B15: SERVIÇOS PRELIMINARES | D15: =Orçamento!V338 -> 0 | E15: =Orçamento!X338 -> 0 | F15: =ROUND(F17*$D$15,2) -> 0 | J15: =ROUND(J17*$D$15,2) -> 0 | N15: =SUM(F15:M15) -> 0 | P15: =IF(D15=N15,"OK","ERRO") -> OK
A16: =IF(A15="F",A15,"") -> 
A17: =IF(A16="F",A16,"") ->  | F17: 1 | J17: =1-F17 -> 0 | N17: =IFERROR(E15/100,"") -> 0 | P17: =IF(E15=N17*100,"OK","ERRO") -> OK
A18: =IF(D18>0,"F","") ->  | B18: TRANSPORTES | D18: =Orçamento!V339 -> 0 | E18: =Orçamento!X339 -> 0 | F18: =ROUND(F20*$D$18,2) -> 0 | J18: =ROUND(J20*$D$18,2) -> 0 | N18: =SUM(F18:M18) -> 0 | P18: =IF(D18=N18,"OK","ERRO") -> OK
A19: =IF(A18="F",A18,"") -> 
A20: =IF(A19="F",A19,"") ->  | F20: 0.48 | J20: =1-F20 -> 0.52 | N20: =IFERROR(E18/100,"") -> 0 | P20: =IF(E18=N20*100,"OK","ERRO") -> OK
A21: =IF(D21>0,"F","") ->  | B21: SERVIÇO EM TERRA | D21: =Orçamento!V340 -> 0 | E21: =Orçamento!X340 -> 0 | F21: =ROUND(F23*$D$21,2) -> 0 | J21: =ROUND(J23*$D$21,2) -> 0 | N21: =SUM(F21:M21) -> 0 | P21: =IF(D21=N21,"OK","ERRO") -> OK
A22: =IF(A21="F",A21,"") -> 
A23: =IF(A22="F",A22,"") ->  | F23: 1 | J23: =1-F23 -> 0 | N23: =IFERROR(E21/100,"") -> 0 | P23: =IF(E21=N23*100,"OK","ERRO") -> OK
A24: =IF(D24>0,"F","") ->  | B24: FUNDAÇÕES E SONDAGENS | D24: =Orçamento!V341 -> 0 | E24: =Orçamento!X341 -> 0 | F24: =ROUND(F26*$D$24,2) -> 0 | J24: =ROUND(J26*$D$24,2) -> 0 | N24: =SUM(F24:M24) -> 0 | P24: =IF(D24=N24,"OK","ERRO") -> OK
A25: =IF(A24="F",A24,"") -> 
A26: =IF(A25="F",A25,"") ->  | F26: 1 | J26: =1-F26 -> 0 | N26: =IFERROR(E24/100,"") -> 0 | P26: =IF(E24=N26*100,"OK","ERRO") -> OK
A27: =IF(D27>0,"F","") ->  | B27: ESTRUTURA | D27: =Orçamento!V342 -> 0 | E27: =Orçamento!X342 -> 0 | F27: =ROUND(F29*$D$27,2) -> 0 | J27: =ROUND(J29*$D$27,2) -> 0 | N27: =SUM(F27:M27) -> 0 | P27: =IF(D27=N27,"OK","ERRO") -> OK
A28: =IF(A27="F",A27,"") -> 
A29: =IF(A28="F",A28,"") ->  | F29: 0.49 | J29: =1-F29 -> 0.51 | N29: =IFERROR(E27/100,"") -> 0 | P29: =IF(E27=N29*100,"OK","ERRO") -> OK
A30: =IF(D30>0,"F","") ->  | B30: INST.ELET/TELEFÔNICA/CABEAMENTO ESTRUTURADO | D30: =Orçamento!V343 -> 0 | E30: =Orçamento!X343 -> 0 | F30: =ROUND(F32*$D$30,2) -> 0 | J30: =ROUND(J32*$D$30,2) -> 0 | N30: =SUM(F30:M30) -> 0 | P30: =IF(D30=N30,"OK","ERRO") -> OK
A31: =IF(A30="F",A30,"") -> 
A32: =IF(A31="F",A31,"") ->  | F32: 0.4 | J32: =1-F32 -> 0.6 | N32: =IFERROR(E30/100,"") -> 0 | P32: =IF(E30=N32*100,"OK","ERRO") -> OK
A33: =IF(D33>0,"F","") ->  | B33: INSTALAÇÕES HIDROSSANITÁRIAS | D33: =Orçamento!V344 -> 0 | E33: =Orçamento!X344 -> 0 | F33: =ROUND(F35*$D$33,2) -> 0 | J33: =ROUND(J35*$D$33,2) -> 0 | N33: =SUM(F33:M33) -> 0 | P33: =IF(D33=N33,"OK","ERRO") -> OK
A34: =IF(A33="F",A33,"") -> 
A35: =IF(A34="F",A34,"") ->  | F35: 0.48 | J35: =1-F35 -> 0.52 | N35: =IFERROR(E33/100,"") -> 0 | P35: =IF(E33=N35*100,"OK","ERRO") -> OK
A36: =IF(D36>0,"F","") ->  | B36: INSTALAÇÕES ESPECIAIS | D36: =Orçamento!V345 -> 0 | E36: =Orçamento!X345 -> 0 | F36: =ROUND(F38*$D$36,2) -> 0 | J36: =ROUND(J38*$D$36,2) -> 0 | N36: =SUM(F36:M36) -> 0 | P36: =IF(D36=N36,"OK","ERRO") -> OK
A37: =IF(A36="F",A36,"") -> 
A38: =IF(A37="F",A37,"") ->  | F38: 1 | J38: =1-F38 -> 0 | N38: =IFERROR(E36/100,"") -> 0 | P38: =IF(E36=N38*100,"OK","ERRO") -> OK
A39: =IF(D39>0,"F","") ->  | B39: ALVENARIA E DIVISÓRIAS | D39: =Orçamento!V346 -> 0 | E39: =Orçamento!X346 -> 0 | F39: =ROUND(F41*$D$39,2) -> 0 | J39: =ROUND(J41*$D$39,2) -> 0 | N39: =SUM(F39:M39) -> 0 | P39: =IF(D39=N39,"OK","ERRO") -> OK
A40: =IF(A39="F",A39,"") -> 
A41: =IF(A40="F",A40,"") ->  | F41: 1 | J41: =1-F41 -> 0 | N41: =IFERROR(E39/100,"") -> 0 | P41: =IF(E39=N41*100,"OK","ERRO") -> OK
A42: =IF(D42>0,"F","") ->  | B42: ALVENARIA AUTO-PORTANTE | D42: =Orçamento!V347 -> 0 | E42: =Orçamento!X347 -> 0 | F42: =ROUND(F44*$D$42,2) -> 0 | J42: =ROUND(J44*$D$42,2) -> 0 | N42: =SUM(F42:M42) -> 0 | P42: =IF(D42=N42,"OK","ERRO") -> OK
A43: =IF(A42="F",A42,"") -> 
A44: =IF(A43="F",A43,"") ->  | F44: 1 | J44: =1-F44 -> 0 | N44: =IFERROR(E42/100,"") -> 0 | P44: =IF(E42=N44*100,"OK","ERRO") -> OK
A45: =IF(D45>0,"F","") ->  | B45: IMPERMEABILIZAÇÃO | D45: =Orçamento!V348 -> 0 | E45: =Orçamento!X348 -> 0 | F45: =ROUND(F47*$D$45,2) -> 0 | J45: =ROUND(J47*$D$45,2) -> 0 | N45: =SUM(F45:M45) -> 0 | P45: =IF(D45=N45,"OK","ERRO") -> OK
A46: =IF(A45="F",A45,"") -> 
A47: =IF(A46="F",A46,"") ->  | F47: 1 | J47: =1-F47 -> 0 | N47: =IFERROR(E45/100,"") -> 0 | P47: =IF(E45=N47*100,"OK","ERRO") -> OK
A48: =IF(D48>0,"F","") ->  | B48: ISOLAMENTO TÉRMICO E ACÚSTICO | D48: =Orçamento!V349 -> 0 | E48: =Orçamento!X349 -> 0 | F48: =ROUND(F50*$D$48,2) -> 0 | J48: =ROUND(J50*$D$48,2) -> 0 | N48: =SUM(F48:M48) -> 0 | P48: =IF(D48=N48,"OK","ERRO") -> OK
A49: =IF(A48="F",A48,"") -> 
A50: =IF(A49="F",A49,"") ->  | F50: 0.5 | J50: =1-F50 -> 0.5 | N50: =IFERROR(E48/100,"") -> 0 | P50: =IF(E48=N50*100,"OK","ERRO") -> OK
A51: =IF(D51>0,"F","") ->  | B51: ESTRUTURA DE MADEIRA | D51: =Orçamento!V350 -> 0 | E51: =Orçamento!X350 -> 0 | F51: =ROUND(F53*$D$51,2) -> 0 | J51: =ROUND(J53*$D$51,2) -> 0 | N51: =SUM(F51:M51) -> 0 | P51: =IF(D51=N51,"OK","ERRO") -> OK
A52: =IF(A51="F",A51,"") -> 
A53: =IF(A52="F",A52,"") ->  | F53: 0.4 | J53: =1-F53 -> 0.6 | N53: =IFERROR(E51/100,"") -> 0 | P53: =IF(E51=N53*100,"OK","ERRO") -> OK
A54: =IF(D54>0,"F","") ->  | B54: ESTRUTURA METÁLICA | D54: =Orçamento!V351 -> 0 | E54: =Orçamento!X351 -> 0 | F54: =ROUND(F56*$D$54,2) -> 0 | J54: =ROUND(J56*$D$54,2) -> 0 | N54: =SUM(F54:M54) -> 0 | P54: =IF(D54=N54,"OK","ERRO") -> OK
A55: =IF(A54="F",A54,"") -> 
A56: =IF(A55="F",A55,"") ->  | F56: 0.35 | J56: =1-F56 -> 0.65 | N56: =IFERROR(E54/100,"") -> 0 | P56: =IF(E54=N56*100,"OK","ERRO") -> OK
A57: =IF(D57>0,"F","") ->  | B57: COBERTURAS | D57: =Orçamento!V352 -> 0 | E57: =Orçamento!X352 -> 0 | F57: =ROUND(F59*$D$57,2) -> 0 | J57: =ROUND(J59*$D$57,2) -> 0 | N57: =SUM(F57:M57) -> 0 | P57: =IF(D57=N57,"OK","ERRO") -> OK
A58: =IF(A57="F",A57,"") -> 
A59: =IF(A58="F",A58,"") ->  | F59: 0 | J59: =1-F59 -> 1 | N59: =IFERROR(E57/100,"") -> 0 | P59: =IF(E57=N59*100,"OK","ERRO") -> OK
A60: =IF(D60>0,"F","") ->  | B60: ESQUADRIAS DE MADEIRA | D60: =Orçamento!V353 -> 0 | E60: =Orçamento!X353 -> 0 | F60: =ROUND(F62*$D$60,2) -> 0 | J60: =ROUND(J62*$D$60,2) -> 0 | N60: =SUM(F60:M60) -> 0 | P60: =IF(D60=N60,"OK","ERRO") -> OK
A61: =IF(A60="F",A60,"") -> 
A62: =IF(A61="F",A61,"") ->  | F62: 0.54 | J62: =1-F62 -> 0.46 | N62: =IFERROR(E60/100,"") -> 0 | P62: =IF(E60=N62*100,"OK","ERRO") -> OK
A63: =IF(D63>0,"F","") ->  | B63: ESQUADRIAS METÁLICAS | D63: =Orçamento!V354 -> 0 | E63: =Orçamento!X354 -> 0 | F63: =ROUND(F65*$D$63,2) -> 0 | J63: =ROUND(J65*$D$63,2) -> 0 | N63: =SUM(F63:M63) -> 0 | P63: =IF(D63=N63,"OK","ERRO") -> OK
A64: =IF(A63="F",A63,"") -> 
A65: =IF(A64="F",A64,"") ->  | F65: 0.49 | J65: =1-F65 -> 0.51 | N65: =IFERROR(E63/100,"") -> 0 | P65: =IF(E63=N65*100,"OK","ERRO") -> OK
A66: =IF(D66>0,"F","") ->  | B66: VIDROS | D66: =Orçamento!V355 -> 0 | E66: =Orçamento!X355 -> 0 | F66: =ROUND(F68*$D$66,2) -> 0 | J66: =ROUND(J68*$D$66,2) -> 0 | N66: =SUM(F66:M66) -> 0 | P66: =IF(D66=N66,"OK","ERRO") -> OK
A67: =IF(A66="F",A66,"") -> 
A68: =IF(A67="F",A67,"") ->  | F68: 0 | J68: =1-F68 -> 1 | N68: =IFERROR(E66/100,"") -> 0 | P68: =IF(E66=N68*100,"OK","ERRO") -> OK
A69: =IF(D69>0,"F","") ->  | B69: REVESTIMENTO DE PAREDE | D69: =Orçamento!V356 -> 0 | E69: =Orçamento!X356 -> 0 | F69: =ROUND(F71*$D$69,2) -> 0 | J69: =ROUND(J71*$D$69,2) -> 0 | N69: =SUM(F69:M69) -> 0 | P69: =IF(D69=N69,"OK","ERRO") -> OK
A70: =IF(A69="F",A69,"") -> 
A71: =IF(A70="F",A70,"") ->  | F71: 0.32 | J71: =1-F71 -> 0.68 | N71: =IFERROR(E69/100,"") -> 0 | P71: =IF(E69=N71*100,"OK","ERRO") -> OK
A72: =IF(D72>0,"F","") ->  | B72: FORROS | D72: =Orçamento!V357 -> 0 | E72: =Orçamento!X357 -> 0 | F72: =ROUND(F74*$D$72,2) -> 0 | J72: =ROUND(J74*$D$72,2) -> 0 | N72: =SUM(F72:M72) -> 0 | P72: =IF(D72=N72,"OK","ERRO") -> OK
A73: =IF(A72="F",A72,"") -> 
A74: =IF(A73="F",A73,"") ->  | F74: 0.24 | J74: =1-F74 -> 0.76 | N74: =IFERROR(E72/100,"") -> 0 | P74: =IF(E72=N74*100,"OK","ERRO") -> OK
A75: =IF(D75>0,"F","") ->  | B75: REVESTIMENTO DE PISO | D75: =Orçamento!V358 -> 0 | E75: =Orçamento!X358 -> 0 | F75: =ROUND(F77*$D$75,2) -> 0 | J75: =ROUND(J77*$D$75,2) -> 0 | N75: =SUM(F75:M75) -> 0 | P75: =IF(D75=N75,"OK","ERRO") -> OK
A76: =IF(A75="F",A75,"") -> 
A77: =IF(A76="F",A76,"") ->  | F77: 0.49 | J77: =1-F77 -> 0.51 | N77: =IFERROR(E75/100,"") -> 0 | P77: =IF(E75=N77*100,"OK","ERRO") -> OK
A78: =IF(D78>0,"F","") ->  | B78: FERRAGENS | D78: =Orçamento!V359 -> 0 | E78: =Orçamento!X359 -> 0 | F78: =ROUND(F80*$D$78,2) -> 0 | J78: =ROUND(J80*$D$78,2) -> 0 | N78: =SUM(F78:M78) -> 0 | P78: =IF(D78=N78,"OK","ERRO") -> OK
A79: =IF(A78="F",A78,"") -> 
A80: =IF(A79="F",A79,"") ->  | F80: 0 | J80: =1-F80 -> 1 | N80: =IFERROR(E78/100,"") -> 0 | P80: =IF(E78=N80*100,"OK","ERRO") -> OK
A81: =IF(D81>0,"F","") ->  | B81: MARCENARIA | D81: =Orçamento!V360 -> 0 | E81: =Orçamento!X360 -> 0 | F81: =ROUND(F83*$D$81,2) -> 0 | J81: =ROUND(J83*$D$81,2) -> 0 | N81: =SUM(F81:M81) -> 0 | P81: =IF(D81=N81,"OK","ERRO") -> OK
A82: =IF(A81="F",A81,"") -> 
A83: =IF(A82="F",A82,"") ->  | F83: 0.4 | J83: =1-F83 -> 0.6 | N83: =IFERROR(E81/100,"") -> 0 | P83: =IF(E81=N83*100,"OK","ERRO") -> OK
A84: =IF(D84>0,"F","") ->  | B84: ADMINISTRAÇÃO - MENSALISTAS | D84: =Orçamento!V361 -> 0 | E84: =Orçamento!X361 -> 0 | F84: =ROUND(F86*$D$84,2) -> 0 | J84: =ROUND(J86*$D$84,2) -> 0 | N84: =SUM(F84:M84) -> 0 | P84: =IF(D84=N84,"OK","ERRO") -> OK
A85: =IF(A84="F",A84,"") -> 
A86: =IF(A85="F",A85,"") ->  | F86: 0.49 | J86: =1-F86 -> 0.51 | N86: =IFERROR(E84/100,"") -> 0 | P86: =IF(E84=N86*100,"OK","ERRO") -> OK
A87: =IF(D87>0,"F","") ->  | B87: PINTURA | D87: =Orçamento!V362 -> 0 | E87: =Orçamento!X362 -> 0 | F87: =ROUND(F89*$D$87,2) -> 0 | J87: =ROUND(J89*$D$87,2) -> 0 | N87: =SUM(F87:M87) -> 0 | P87: =IF(D87=N87,"OK","ERRO") -> OK
A88: =IF(A87="F",A87,"") -> 
A89: =IF(A88="F",A88,"") ->  | F89: 0 | J89: =1-F89 -> 1 | N89: =IFERROR(E87/100,"") -> 0 | P89: =IF(E87=N89*100,"OK","ERRO") -> OK
A90: =IF(D90>0,"F","") ->  | B90: DIVERSOS | D90: =Orçamento!V363 -> 0 | E90: =Orçamento!X363 -> 0 | F90: =ROUND(F92*$D$90,2) -> 0 | J90: =ROUND(J92*$D$90,2) -> 0 | N90: =SUM(F90:M90) -> 0 | P90: =IF(D90=N90,"OK","ERRO") -> OK
A91: =IF(A90="F",A90,"") -> 
A92: =IF(A91="F",A91,"") ->  | F92: 0.46 | J92: =1-F92 -> 0.54 | N92: =IFERROR(E90/100,"") -> 0 | P92: =IF(E90=N92*100,"OK","ERRO") -> OK
A93: F | B93: CUSTO DO ORÇAMENTO | D93: =SUM(D15:D92) -> 0 | E93: =SUM(E15:E92) -> 0 | F93: =F15+F18+F21+F24+F27+F30+F33+F36+F39+F42+F45+F48+F51+F54+F57+F60+F63+F66+F69+F72+F75+F78+F81+F84+F87+F90 -> 0 | J93: =J15+J18+J21+J24+J27+J30+J33+J36+J39+J42+J45+J48+J51+J54+J57+J60+J63+J66+J69+J72+J75+J78+J81+J84+J87+J90 -> 0 | N93: =N15+N18+N21+N24+N27+N30+N33+N36+N39+N42+N45+N48+N51+N54+N57+N60+N63+N66+N69+N72+N75+N78+N81+N84+N87+N90 -> 0
A94: F | B94: PERCENTUAIS: | F94: =IFERROR(F93/D93,"") ->  | J94: =IFERROR(J93/D93,"") ->  | N94: =SUM(F94:M94) -> 0
A95: F | B95: TOTAIS ACUMULADOS: | F95: =F93 -> 0 | J95: =F95+J93 -> 0
A96: F | B96: PERCENTUAIS ACUMULADOS: | F96: =F94 ->  | J96: =IFERROR(F96+J94,"") -> 
A97: F
A98: F | B98: OBSERVAÇÕES:
A99: F | B99: Os pagamentos somente poderão ser efetuados mediante medição e atesto pelos técnicos da Secretaria da Educação.

Sheet Composição BDI
A3: UNIDADE ESCOLAR
A4: =Orçamento!$O$4 -> CENTRO DE ATENDIMENTO EDUCACIONAL ESPECIALIZADO DE IPORÁ
A6: OBRA
A7: =Orçamento!$O$7 -> REFORMA
H8: DESONERADA
A9: ENDEREÇO
A10: =Orçamento!$R$10 -> AV DR NETO ESQ. C/ RUA GOIÂNIA S/N, CENTRO, CEP:76200-000
A12: CIDADE
A13: =Orçamento!$V$7 -> IPORÁ
A15: CRE
A16: =Orçamento!$O$10 -> IPORÁ
A18: DETALHAMENTO DA COMPOSIÇÃO DE BDI
A19: COMPOSIÇÃO BDI PARA OBRAS CIVIS | F19: BDI CONSTRUÇÃO E REFORMA
A20: DESCRIÇÃO | B20: COEF. | C20: TAXA % (a.m) | D20: % no preço de venda | F20: Situação | G20: 1º Quartil | H20: Médio | I20: 3º Quartil
A21: 1) COFINS | B21: 1 | C21: 0.03 | D21: =C21 -> 0.03 | F21: =IF(OR(C21<G21,C21>I21),"FORA DO INTERVALO","OK") -> OK | G21: 0.03 | H21: 0.03 | I21: 0.03
A22: 2) PIS | B22: 1 | C22: 0.0065 | D22: =C22 -> 0.0065 | F22: =IF(OR(C22<G22,C22>I22),"FORA DO INTERVALO","OK") -> OK | G22: 0.0065 | H22: 0.0065 | I22: 0.0065
A23: 3) ISSQN | B23: 1 | C23: 0.025 | D23: =C23*B23 -> 0.025 | F23: OK | G23: 0.02 | H23: 0.035 | I23: 0.05
A24: 4) CPRB | B24: 1 | C24: 0.045 | D24: =C24 -> 0.045 | F24: OK | G24: 0.045 | H24: 0.045 | I24: 0.045
A25: 5) Administração Central | B25: 1 | C25: 0.04 | D25: 0.04 | F25: OK | G25: 0.03 | H25: 0.04 | I25: 0.055
A26: 6) Despesas Financeiras | B26: 1 | C26: 0.0056 | D26: 0.0056 | F26: FORA DO INTERVALO | G26: 0.0059 | H26: 0.0123 | I26: 0.0139
A27: 7) Seguros + Garantias | B27: 1 | C27: 0.0012 | D27: 0.0012 | F27: FORA DO INTERVALO | G27: 0.008 | H27: 0.008 | I27: 0.01
A28: 8) Risco | B28: 1 | C28: 0.0097 | D28: 0.0097 | F28: OK | G28: 0.0097 | H28: 0.0127 | I28: 0.0127
A29: 9) Lucro | B29: 1 | C29: 0.0687 | D29: 0.0687 | F29: OK | G29: 0.0616 | H29: 0.074 | I29: 0.0896
A30: BDI - FINAL | D30: =(((1+D25+D27+D28)*(1+D26)*(1+D29))/(1-(D21+D22+D23+D24))-1) -> 0.2640024312 | F30: =IF(OR(D30<G30,D30>I30),"FORA DO INTERVALO","OK") -> FORA DO INTERVALO | G30: 0.2034 | H30: 0.2212 | I30: 0.25
A32: Notas:
A33: (1) e (2) Alíquota definida por lei.
A34: (3) Alíquota e base de cálculo definidas pela legislação municipal.
A35: (4) Alíquota definida pelas leis 12.546/11, 12844/13 e 13.161/15 (CPRB – contribuição previdenciária sobre a receita bruta).
A36: (5) Valores definidos a partir dos limites no Acórdão nº 2.622/2013 - TCU – Plenário. Valores entre o 1º e 3º quartis.
A37: (6) Valor calculado pela expressão matemática do acórdão 2.369/2011 – TCU – Plenário e disponibilizado pela AGETOP em dezembro de 2018. (Foi utilizado para o cálculo a média da Taxa SELIC no período de 11/2017 a 10/2018)
A39: (7) Valores definidos pela AGETOP a partir dos limites no Acórdão nº 2.622/2013 - TCU – Plenário. Valores médios. Observação da AGETOP: (Seguros contra erros de execução, incêndio e explosão, danos da natureza (vendaval, destelhamento, alagamento, inundação, desmoronamento, geadas etc.), emprego de material defeituoso ou inadequado, roubo e/ou furto qualificado, quebra de equipamentos, desmoronamento de estrutura, nas modalidades de Obras Civis em Construção (OCC); Instalação e Montagem (IM); e Obras Civis em Construção e Instalação e Montagem (OCC/IM). Bem como coberturas adicionais para ampliação dessas coberturas básicas, como: cobertura de responsabilidade civil geral, cobertura de responsabilidade civil cruzada, cobertura de despesas extraordinárias, cobertura de tumultos, cobertura de desentulho do local, cobertura de riscos do fabricante, dentre outras, incluindo o seguro de vida em grupo regido pela convenção coletiva dos trabalhadores na indústria da construção civil). A partir de 24/02/2015 por intermédio da Portaria 449/2015 a Presidência da AGETOP, na pessoa do Senhor Jayme Eduardo Rincon, determinou a exclusão dos valores referentes aos Seguros de Risco de Engenharia e Responsabilidade Civil do Profissional na composição do cálculo do B.D.I..
A40: (8) Valores definidos a partir dos limites no Acórdão nº 2.622/2013 - TCU – Plenário. Valores entre 1º e 3° quartis.
A41: (9) Valores definidos a partir dos limites definidos no Acórdão nº 2.622/2013 - TCU – Plenário. Valores adotados e praticados no mercado ( “ ex ante ” ) ou aqueles entre os 1º e 3º quartis.
A43: (*) A fórmula para estipulação da taxa de BDI estimado adotado é a mesma que foi aplicada para a obtenção das tabelas contidas no Acórdão n. 2.622/2013 – TCUPlenário
A45: Obs.: Para obras com valores superiores a R$ 20.000.000,00 sugere-se recalcular o BDI, dimensionando as taxas de administração central e lucro para patamares inferiores ao estipulado acima.

Sheet Relatório CENTRAL
B3: UNIDADE ESCOLAR | D3: CIDADE
B4: =Orçamento!$O$4 -> CENTRO DE ATENDIMENTO EDUCACIONAL ESPECIALIZADO DE IPORÁ | D4: =Orçamento!$V$7 -> IPORÁ
B6: OBRA | D6: CRE
B7: =Orçamento!$O$7 -> REFORMA | D7: =Orçamento!$O$10 -> IPORÁ
H8: DESONERADA
B9: ENDEREÇO | D9: DATA
A10: FILTRO | B10: =Orçamento!$R$10 -> AV DR NETO ESQ. C/ RUA GOIÂNIA S/N, CENTRO, CEP:76200-000 | D10: =Orçamento!$S$7 -> 2020-04-06
B12: RELATÓRIO CENTRAL
A13: ↓ | B13: CÓDIGO | C13: ETAPA | D13: PREÇO (R$) C/ BDI | E13: PARTIC ( % )
A14: =IF(D14>0,"F","") ->  | B14: =Orçamento!O338 -> a. | C14: =Orçamento!P338 -> SERVIÇOS PRELIMINARES | D14: =Orçamento!V338 -> 0 | E14: =Orçamento!X338 -> 0
A15: =IF(D15>0,"F","") ->  | B15: =Orçamento!O339 -> b. | C15: =Orçamento!P339 -> TRANSPORTES | D15: =Orçamento!V339 -> 0 | E15: =Orçamento!X339 -> 0
B16: =Orçamento!O340 -> c. | C16: =Orçamento!P340 -> SERVIÇO EM TERRA | D16: =Orçamento!V340 -> 0 | E16: =Orçamento!X340 -> 0
B17: =Orçamento!O341 -> d. | C17: =Orçamento!P341 -> FUNDAÇÕES E SONDAGENS | D17: =Orçamento!V341 -> 0 | E17: =Orçamento!X341 -> 0
B18: =Orçamento!O342 -> e. | C18: =Orçamento!P342 -> ESTRUTURA | D18: =Orçamento!V342 -> 0 | E18: =Orçamento!X342 -> 0
B19: =Orçamento!O343 -> f. | C19: =Orçamento!P343 -> INSTALAÇÕES ELÉTRICAS | D19: =Orçamento!V343 -> 0 | E19: =Orçamento!X343 -> 0
B20: =Orçamento!O344 -> g. | C20: =Orçamento!P344 -> INSTALAÇÕES HIDROSSANITÁRIAS | D20: =Orçamento!V344 -> 0 | E20: =Orçamento!X344 -> 0
B21: =Orçamento!O345 -> h | C21: =Orçamento!P345 -> INSTALAÇÕES ESPECIAIS | D21: =Orçamento!V345 -> 0 | E21: =Orçamento!X345 -> 0
B22: =Orçamento!O346 -> i. | C22: =Orçamento!P346 -> ALVENARIAS E DIVISÓRIAS | D22: =Orçamento!V346 -> 0 | E22: =Orçamento!X346 -> 0
B23: =Orçamento!O347 -> j. | C23: =Orçamento!P347 -> ALVENARIA AUTO-PORTANTE | D23: =Orçamento!V347 -> 0 | E23: =Orçamento!X347 -> 0
B24: =Orçamento!O348 -> k. | C24: =Orçamento!P348 -> IMPERMEABILIZAÇÃO | D24: =Orçamento!V348 -> 0 | E24: =Orçamento!X348 -> 0
B25: =Orçamento!O349 -> l. | C25: =Orçamento!P349 -> ISOLAMENTO TÉRMICO E ACÚSTICO | D25: =Orçamento!V349 -> 0 | E25: =Orçamento!X349 -> 0
B26: =Orçamento!O350 -> m. | C26: =Orçamento!P350 -> ESTRUTURA DE MADEIRA | D26: =Orçamento!V350 -> 0 | E26: =Orçamento!X350 -> 0
B27: =Orçamento!O351 -> n. | C27: =Orçamento!P351 -> ESTRUTURAS METÁLICAS | D27: =Orçamento!V351 -> 0 | E27: =Orçamento!X351 -> 0
B28: =Orçamento!O352 -> o. | C28: =Orçamento!P352 -> COBERTURAS | D28: =Orçamento!V352 -> 0 | E28: =Orçamento!X352 -> 0
B29: =Orçamento!O353 -> p. | C29: =Orçamento!P353 -> ESQUADRIAS DE MADEIRA | D29: =Orçamento!V353 -> 0 | E29: =Orçamento!X353 -> 0
B30: =Orçamento!O354 -> q. | C30: =Orçamento!P354 -> ESQUADRIAS METÁLICAS | D30: =Orçamento!V354 -> 0 | E30: =Orçamento!X354 -> 0
B31: =Orçamento!O355 -> r. | C31: =Orçamento!P355 -> VIDROS | D31: =Orçamento!V355 -> 0 | E31: =Orçamento!X355 -> 0
B32: =Orçamento!O356 -> s. | C32: =Orçamento!P356 -> REVESTIMENTO DE PAREDE | D32: =Orçamento!V356 -> 0 | E32: =Orçamento!X356 -> 0
B33: =Orçamento!O357 -> t. | C33: =Orçamento!P357 -> FORROS | D33: =Orçamento!V357 -> 0 | E33: =Orçamento!X357 -> 0
B34: =Orçamento!O358 -> u. | C34: =Orçamento!P358 -> REVESTIMENTO DE PISO | D34: =Orçamento!V358 -> 0 | E34: =Orçamento!X358 -> 0
B35: =Orçamento!O359 -> v. | C35: =Orçamento!P359 -> FERRAGENS | D35: =Orçamento!V359 -> 0 | E35: =Orçamento!X359 -> 0
B36: =Orçamento!O360 -> w. | C36: =Orçamento!P360 -> MARCENARIA | D36: =Orçamento!V360 -> 0 | E36: =Orçamento!X360 -> 0
B37: =Orçamento!O361 -> x. | C37: =Orçamento!P361 -> ADMINISTRAÇÃO | D37: =Orçamento!V361 -> 0 | E37: =Orçamento!X361 -> 0
B38: =Orçamento!O362 -> y. | C38: =Orçamento!P362 -> PINTURA | D38: =Orçamento!V362 -> 0 | E38: =Orçamento!X362 -> 0
B39: =Orçamento!O363 -> z. | C39: =Orçamento!P363 -> DIVERSOS | D39: =Orçamento!V363 -> 0 | E39: =Orçamento!X363 -> 0
A40: F | B40: TOTAL GERAL DO ORÇAMENTO (R$) C/BDI | D40: =SUM(D14:D39) -> 0 | E40: =SUM(E14:E39) -> 0

Sheet Parc Maior Relev
B3: UNIDADE ESCOLAR | E3: CÓDIGO INEP
B4: =Orçamento!$O$4 -> CENTRO DE ATENDIMENTO EDUCACIONAL ESPECIALIZADO DE IPORÁ | E4: =Orçamento!$V$4 -> 52070069
B6: OBRA | E6: CIDADE
B7: =Orçamento!$O$7 -> REFORMA | E7: =Orçamento!$V$7 -> IPORÁ
H8: DESONERADA
B9: CRE | E9: ÁREA TOTAL CONSTRUÍDA (M²)
B10: =Orçamento!$O$10 -> IPORÁ | E10: =Orçamento!$V$13 -> 643.1
A12: FILTRO | B12: PARCELA DE MAIOR RELEVÂNCIA
A13: =IF(G14>0,"F","") ->  | B13: CÓDIGO | C13: SERVIÇO | D13: DESCRIÇÃO | E13: UNID | F13: QUANT | G13: PARC. MAIOR RELEV (100%)
A14: =IF(G14>0,"F","") ->  | B14: =Somatório!B22 -> f. | C14: INSTALAÇÕES ELÉTRICAS | D14: SUBESTAÇÃO | E14: KVA | F14: =SUMIF(Orçamento!$R$20:$R$319,'Parc Maior Relev'!D14,Orçamento!$T$20:$T$319) -> 0 | G14: =F14 -> 0
A15: =IF(SUM(G16:G32)>0,"F","") -> F | B15: CÓDIGO | C15: SERVIÇO | D15: DESCRIÇÃO | E15: UNID | F15: QUANT | G15: PARC. MAIOR RELEV (50%)
A16: =IF(G16>0,"F","") ->  | B16: =Somatório!B21 -> e. | C16: ESTRUTURA | D16: CONCRETO | E16: M3 | F16: =SUMIF(Orçamento!$R$20:$R$319,'Parc Maior Relev'!D16,Orçamento!$T$20:$T$319) -> 0 | G16: =F16*0.5 -> 0
A17: =IF(G17>0,"F","") ->  | B17: f. | C17: INSTALAÇÕES ELÉTRICAS | D17: INSTALAÇÕES ELÉTRICAS | E17: KVA | F17: =SUMIF(Orçamento!$R$20:$R$319,'Parc Maior Relev'!D17,Orçamento!$T$20:$T$319) -> 0 | G17: =F17 -> 0
A18: =IF(G18>0,"F","") ->  | B18: =Somatório!B25 -> i. | C18: ALVENARIA E DIVISÓRIAS | D18: ALVENARIA DE TIJOLOS | E18: M2 | F18: =SUMIF(Orçamento!$R$20:$R$319,'Parc Maior Relev'!D18,Orçamento!$T$20:$T$319) -> 0 | G18: =F18*0.5 -> 0
B19: =Somatório!B29 -> m. | C19: ESTRUTURA DE MADEIRA | D19: ESTRUTURA DE MADEIRA | E19: M2 | F19: =SUMIF(Orçamento!$R$20:$R$319,'Parc Maior Relev'!D19,Orçamento!$T$20:$T$319) -> 0 | G19: 0
B20: =Somatório!B31 -> o. | C20: COBERTURAS | D20: COBERTURA CERÂMICA | E20: M2 | F20: =SUMIF(Orçamento!$R$20:$R$319,'Parc Maior Relev'!D20,Orçamento!$T$20:$T$319) -> 0 | G20: 0
B21: o. | C21: COBERTURAS | D21: COBERTURA COM TELHA METÁLICA | E21: M2 | F21: =SUMIF(Orçamento!$R$20:$R$319,'Parc Maior Relev'!D21,Orçamento!$T$20:$T$319) -> 0 | G21: 0
B22: =Somatório!B35 -> s. | C22: REVESTIMENTO DE PAREDE | D22: CHAPISCO | E22: M2 | F22: =SUMIF(Orçamento!$R$20:$R$319,'Parc Maior Relev'!D22,Orçamento!$T$20:$T$319) -> 0 | G22: 0
A23: F | B23: s. | C23: REVESTIMENTO DE PAREDE | D23: REBOCO | E23: M2 | F23: =34.72+208.46+116.45 -> 359.63 | G23: =F23*0.5 -> 179.815
B24: s. | C24: REVESTIMENTO DE PAREDE | D24: REVESTIMENTO CERÂMICO | E24: M2 | F24: =SUMIF(Orçamento!$R$20:$R$319,'Parc Maior Relev'!D24,Orçamento!$T$20:$T$319) -> 0 | G24: =F24*0.5 -> 0
B25: =Somatório!B36 -> t. | C25: FORROS | D25: FORRO DE GESSO | E25: M2 | F25: =SUMIF(Orçamento!$R$20:$R$319,'Parc Maior Relev'!D25,Orçamento!$T$20:$T$319) -> 0 | G25: =F25*0.5 -> 0
B26: t. | C26: FORROS | D26: FORRO DE PVC | E26: M2 | F26: =SUMIF(Orçamento!$R$20:$R$319,'Parc Maior Relev'!D26,Orçamento!$T$20:$T$319) -> 0 | G26: =F26*0.5 -> 0
B27: t. | C27: FORROS | D27: FORRO DE GESSO ACARTONADO | E27: M2 | F27: =SUMIF(Orçamento!$R$20:$R$319,'Parc Maior Relev'!D27,Orçamento!$T$20:$T$319) -> 0 | G27: =F27*0.5 -> 0
B28: u. | C28: REVESTIMENTO DE PISO | D28: PISO DE GRANITINA | E28: M2 | F28: =SUMIF(Orçamento!$R$20:$R$319,'Parc Maior Relev'!D28,Orçamento!$T$20:$T$319) -> 0 | G28: 0
B29: u. | C29: REVESTIMENTO DE PISO | D29: PISO LAMINADO | E29: M2 | F29: =SUMIF(Orçamento!$R$20:$R$319,'Parc Maior Relev'!D29,Orçamento!$T$20:$T$319) -> 0 | G29: 0
B30: u. | C30: REVESTIMENTO DE PISO | D30: PISO DE CONCRETO DESEMPENADO | E30: M2 | F30: =SUMIF(Orçamento!$R$20:$R$319,'Parc Maior Relev'!D30,Orçamento!$T$20:$T$319) -> 0 | G30: 0
B31: u. | C31: REVESTIMENTO DE PISO | D31: PISO CERÂMICO | E31: M2 | F31: =SUMIF(Orçamento!$R$20:$R$319,'Parc Maior Relev'!D31,Orçamento!$T$20:$T$319) -> 0 | G31: =F31*0.5 -> 0
A32: F | B32: y. | C32: PINTURA | D32: PINTURA | E32: M2 | F32: =8.26+40.85+916.8+43.64+390 -> 1399.55 | G32: 699.775
A33: F
A34: F | B34: (*) Para os fins do inciso I dp § 1º do Art. 30 da Lei Federal 8.666/93, são consideradas parcelas de maior relevância técnica as execuções apresentadas
A35: F

Sheet Composições
A4: UNIDADE ESCOLAR | H4: CÓDIGO INEP
A5: =Orçamento!$O$4 -> CENTRO DE ATENDIMENTO EDUCACIONAL ESPECIALIZADO DE IPORÁ | H5: =Orçamento!$V$4 -> 52070069
A7: OBRA | H7: CIDADE
A8: =Orçamento!$O$7 -> REFORMA | H8: DESONERADA
A10: CRE | D10: ENDEREÇO | H10: REFERÊNCIA AGETOP
A11: =Orçamento!$O$10 -> IPORÁ | D11: =Orçamento!$R$10 -> AV DR NETO ESQ. C/ RUA GOIÂNIA S/N, CENTRO, CEP:76200-000 | H11: =Orçamento!$S$10 -> ABR/19 | I11: =Orçamento!$T$10 -> DESONERADA
A13: DATA | D13: ÁREA TOTAL CONSTRUÍDA (M²) | H13: REFERÊNCIA SINAPI
A14: =Orçamento!$S$7 -> 2020-04-06 | D14: =Orçamento!$V$13 -> 643.1 | H14: =Orçamento!$V$10 -> DEZ/19 | I14: =Orçamento!$W$10 -> DESONERADA
A16: COMPOSIÇÕES DE CUSTOS UNITÁRIOS - SEE-GO
A17: 10 | B17: FONTE | C17: CÓDIGO | D17: DESCRIÇÃO | E17: UNIDADE | F17: COEFIC. | G17: CUSTO UNITÁRIO | I17: CUSTO TOTAL (A) + (B) + (C) + (D) + (E)
G18: DESONERADO | H18: NÃO DESONER. | I18: DESONERADO | J18: NÃO DESONER.
B19: COMPOSIÇÃO | C19: COMP 010_SEE | D19: DEMOLIÇÃO DE GRADE/GRELHA/CORRIMÃO/GUARDA CORPO - METÁLICO | E19: M2 | G19: - | H19: - | I19: 4.06 | J19: 4.71
B20: MÃO DE OBRA (B) - TOTAL | I20: 0 | J20: 0
B21: AGETOP | C21: 20106 | D21: RETIRADA DE JANELAS OU PORTAIS C/ TRANSP. ATÉ CB. E CARGA | E21: m2 | F21: 1 | G21: 4.06 | H21: 4.71 | I21: 4.06 | J21: 4.71
B22: MATERIAL (C) - TOTAL | I22: 4.06 | J22: 4.71
A24: 387 | B24: FONTE | C24: CÓDIGO | D24: DESCRIÇÃO | E24: UNIDADE | F24: COEFIC. | G24: CUSTO UNITÁRIO | I24: CUSTO TOTAL (A) + (B) + (C) + (D) + (E)
G25: DESONERADO | H25: NÃO DESONER. | I25: DESONERADO | J25: NÃO DESONER.
B26: COMPOSIÇÃO | C26: COMP 387_SEE | D26: LÂMPADA LED TUBULAR 18W | E26: UN | I26: 22.3 | J26: 22.35
B27: AGETOP_I | C27: 8 | D27: AJUDANTE | E27: h | F27: 0.015 | G27: 8.75 | H27: 10.14 | I27: 0.13 | J27: 0.15
B28: AGETOP_I | C28: 12 | D28: ELETRICISTA | E28: h | F28: 0.015 | G28: 13.95 | H28: 16.16 | I28: 0.21 | J28: 0.24
B29: MÃO DE OBRA (B) - TOTAL | I29: 0.34 | J29: 0.39
B30: COTAÇÃO | C30: COT 195_SEE | D30: LÂMPADA LED TUBULAR 18W | E30: UN | F30: 1 | G30: 21.96 | H30: 21.96 | I30: 21.96 | J30: 21.96
B31: MATERIAL (C) - TOTAL | I31: 21.96 | J31: 21.96
A33: 382 | B33: FONTE | C33: CÓDIGO | D33: DESCRIÇÃO | E33: UNIDADE | F33: COEFIC. | G33: CUSTO UNITÁRIO | I33: CUSTO TOTAL (A) + (B) + (C) + (D) + (E)
G34: DESONERADO | H34: NÃO DESONER. | I34: DESONERADO | J34: NÃO DESONER.
B35: COMPOSIÇÃO | C35: COMP 382_SEE | D35: TE DE REDUCAO DE FERRO GALVANIZADO, COM ROSCA BSP, DE 3/4" X 1/2" | E35: UN | I35: 23.02 | J35: 25.2
B36: AGETOP_I | C36: 8 | D36: AJUDANTE | E36: h | F36: 0.6 | G36: 8.75 | H36: 10.14 | I36: 5.25 | J36: 6.08
B37: AGETOP_I | C37: 11 | D37: ENCANADOR | E37: h | F37: 0.6105 | G37: 13.95 | H37: 16.16 | I37: 8.52 | J37: 9.87
B38: MÃO DE OBRA (B) - TOTAL | I38: 13.77 | J38: 15.95
B39: SINAPI_I | C39: 3146 | D39: FITA VEDA ROSCA EM ROLOS DE 18 MM X 10 M (L X C) | E39: UN | F39: 0.120754717 | G39: 3.4 | H39: 3.4 | I39: 0.41 | J39: 0.41
B40: SINAPI_I | C40: 6302 | D40: TE DE REDUCAO DE FERRO GALVANIZADO, COM ROSCA BSP, DE 3/4" X 1/2" | E40: UN | F40: 1 | G40: 8.84 | H40: 8.84 | I40: 8.84 | J40: 8.84
B41: MATERIAL (C) - TOTAL | I41: 9.25 | J41: 9.25
A43: 383 | B43: FONTE | C43: CÓDIGO | D43: DESCRIÇÃO | E43: UNIDADE | F43: COEFIC. | G43: CUSTO UNITÁRIO | I43: CUSTO TOTAL (A) + (B) + (C) + (D) + (E)
G44: DESONERADO | H44: NÃO DESONER. | I44: DESONERADO | J44: NÃO DESONER.
B45: COMPOSIÇÃO | C45: COMP 383_SEE | D45: BUCHA DE REDUCAO DE FERRO GALVANIZADO, COM ROSCA BSP, DE 1/2" X 1/4" | E45: UN | I45: 7.22 | J45: 7.8
B46: AGETOP_I | C46: 8 | D46: AJUDANTE | E46: h | F46: 0.16 | G46: 8.75 | H46: 10.14 | I46: 1.4 | J46: 1.62
B47: AGETOP_I | C47: 11 | D47: ENCANADOR | E47: h | F47: 0.16 | G47: 13.95 | H47: 16.16 | I47: 2.23 | J47: 2.59
B48: MÃO DE OBRA (B) - TOTAL | I48: 3.63 | J48: 4.21
B49: AGETOP_I | C49: H689 | D49: FITA VEDAROSCA 12 MM | E49: m | F49: 1.2 | G49: 0.28 | H49: 0.28 | I49: 0.34 | J49: 0.34
B50: SINAPI_I | C50: 770 | D50: BUCHA DE REDUCAO DE FERRO GALVANIZADO, COM ROSCA BSP, DE 1/2" X 1/4" | E50: UN | F50: 1 | G50: 3.25 | H50: 3.25 | I50: 3.25 | J50: 3.25
B51: MATERIAL (C) - TOTAL | I51: 3.59 | J51: 3.59
A53: 212 | B53: FONTE | C53: CÓDIGO | D53: DESCRIÇÃO | E53: UNIDADE | F53: COEFIC. | G53: CUSTO UNITÁRIO | I53: CUSTO TOTAL (A) + (B) + (C) + (D) + (E)
G54: DESONERADO | H54: NÃO DESONER. | I54: DESONERADO | J54: NÃO DESONER.
B55: COMPOSIÇÃO | C55: COMP 212_SEE | D55: NIPLE DE REDUÇÃO 1/2" X 1/4" BSP | E55: UN | I55: 9.68 | J55: 10.26
B56: AGETOP_I | C56: 8 | D56: AJUDANTE | E56: h | F56: 0.16 | G56: 8.75 | H56: 10.14 | I56: 1.4 | J56: 1.62
B57: AGETOP_I | C57: 11 | D57: ENCANADOR | E57: h | F57: 0.16 | G57: 13.95 | H57: 16.16 | I57: 2.23 | J57: 2.59
B58: MÃO DE OBRA (B) - TOTAL | I58: 3.63 | J58: 4.21
B59: COTAÇÃO | C59: COT 103_SEE | D59: NIPLE DE REDUÇÃO 1/2" X 1/4" BSP | E59: UN | F59: 1 | G59: 6.053333333 | H59: 6.053333333 | I59: 6.05 | J59: 6.05
B60: MATERIAL (C) - TOTAL | I60: 6.05 | J60: 6.05
A62: 213 | B62: FONTE | C62: CÓDIGO | D62: DESCRIÇÃO | E62: UNIDADE | F62: COEFIC. | G62: CUSTO UNITÁRIO | I62: CUSTO TOTAL (A) + (B) + (C) + (D) + (E)
G63: DESONERADO | H63: NÃO DESONER. | I63: DESONERADO | J63: NÃO DESONER.
B64: COMPOSIÇÃO | C64: COMP 213_SEE | D64: NIPLE DE REDUÇÃO 3/4" X 1/2" BSP | E64: UN | I64: 13.34 | J64: 13.92
B65: AGETOP_I | C65: 8 | D65: AJUDANTE | E65: h | F65: 0.16 | G65: 8.75 | H65: 10.14 | I65: 1.4 | J65: 1.62
B66: AGETOP_I | C66: 11 | D66: ENCANADOR | E66: h | F66: 0.16 | G66: 13.95 | H66: 16.16 | I66: 2.23 | J66: 2.59
B67: MÃO DE OBRA (B) - TOTAL | I67: 3.63 | J67: 4.21
B68: COTAÇÃO | C68: COT 104_SEE | D68: NIPLE DE REDUÇÃO 3/4" X 1/2" BSP | E68: UN | F68: 1 | G68: 9.71 | H68: 9.71 | I68: 9.71 | J68: 9.71
B69: MATERIAL (C) - TOTAL | I69: 9.71 | J69: 9.71
A71: 237 | B71: FONTE | C71: CÓDIGO | D71: DESCRIÇÃO | E71: UNIDADE | F71: COEFIC. | G71: CUSTO UNITÁRIO | I71: CUSTO TOTAL (A) + (B) + (C) + (D) + (E)
G72: DESONERADO | H72: NÃO DESONER. | I72: DESONERADO | J72: NÃO DESONER.
B73: COMPOSIÇÃO | C73: COMP 237_SEE | D73: FITA ANTICORROSIVA | E73: M | I73: 11.16 | J73: 11.88
B74: AGETOP_I | C74: 8 | D74: AJUDANTE | E74: h | F74: 0.2 | G74: 8.75 | H74: 10.14 | I74: 1.75 | J74: 2.03
B75: AGETOP_I | C75: 12 | D75: ELETRICISTA | E75: h | F75: 0.2 | G75: 13.95 | H75: 16.16 | I75: 2.79 | J75: 3.23
B76: MÃO DE OBRA (B) - TOTAL | I76: 4.54 | J76: 5.26
B77: SINAPI_I | C77: 39634 | D77: FITA ADESIVA ANTICORROSIVA DE PVC FLEXIVEL, COR PRETA, PARA PROTECAO TUBULACAO, 50 MM X 30 M (L X C), E= *0,25* MM | E77: M | F77: 1 | G77: 6.62 | H77: 6.62 | I77: 6.62 | J77: 6.62
B78: MATERIAL (C) - TOTAL | I78: 6.62 | J78: 6.62
A80: 542 | B80: FONTE | C80: CÓDIGO | D80: DESCRIÇÃO | E80: UNIDADE | F80: COEFIC. | G80: CUSTO UNITÁRIO | I80: CUSTO TOTAL (A) + (B) + (C) + (D) + (E)
G81: DESONERADO | H81: NÃO DESONER. | I81: DESONERADO | J81: NÃO DESONER.
B82: COMPOSIÇÃO | C82: COMP 542_SEE | D82: VÁLVULA UGV 3/4" (S) LATÃO | E82: UN | I82: 25.65 | J82: 27.2
B83: AGETOP_I | C83: 8 | D83: AJUDANTE | E83: h | F83: 0.432 | G83: 8.75 | H83: 10.14 | I83: 3.78 | J83: 4.38
B84: AGETOP_I | C84: 11 | D84: ENCANADOR | E84: h | F84: 0.432 | G84: 13.95 | H84: 16.16 | I84: 6.03 | J84: 6.98
B85: MÃO DE OBRA (B) - TOTAL | I85: 9.81 | J85: 11.36
B86: COTAÇÃO | C86: COT 281_SEE | D86: VÁLVULA UGV 3/4" (S) LATÃO | E86: UN | F86: 1 | G86: 15.83666667 | H86: 15.83666667 | I86: 15.84 | J86: 15.84
B87: MATERIAL (C) - TOTAL | I87: 15.84 | J87: 15.84
A89: 543 | B89: FONTE | C89: CÓDIGO | D89: DESCRIÇÃO | E89: UNIDADE | F89: COEFIC. | G89: CUSTO UNITÁRIO | I89: CUSTO TOTAL (A) + (B) + (C) + (D) + (E)
G90: DESONERADO | H90: NÃO DESONER. | I90: DESONERADO | J90: NÃO DESONER.
B91: COMPOSIÇÃO | C91: COMP 543_SEE | D91: VÁLVULA UGV 1/2" (S) LATÃO | E91: UN | I91: 24.98 | J91: 26.53
B92: AGETOP_I | C92: 8 | D92: AJUDANTE | E92: h | F92: 0.432 | G92: 8.75 | H92: 10.14 | I92: 3.78 | J92: 4.38
B93: AGETOP_I | C93: 11 | D93: ENCANADOR | E93: h | F93: 0.432 | G93: 13.95 | H93: 16.16 | I93: 6.03 | J93: 6.98
B94: MÃO DE OBRA (B) - TOTAL | I94: 9.81 | J94: 11.36
B95: COTAÇÃO | C95: COT 282_SEE | D95: VÁLVULA UGV 1/2" (S) LATÃO | E95: UN | F95: 1 | G95: 15.16666667 | H95: 15.16666667 | I95: 15.17 | J95: 15.17
B96: MATERIAL (C) - TOTAL | I96: 15.17 | J96: 15.17
A98: 211 | B98: FONTE | C98: CÓDIGO | D98: DESCRIÇÃO | E98: UNIDADE | F98: COEFIC. | G98: CUSTO UNITÁRIO | I98: CUSTO TOTAL (A) + (B) + (C) + (D) + (E)
G99: DESONERADO | H99: NÃO DESONER. | I99: DESONERADO | J99: NÃO DESONER.
B100: COMPOSIÇÃO | C100: COMP 211_SEE | D100: REGULADOR DE 2º ESTÁGIO 5KG/H | E100: UN | I100: 86.72 | J100: 90.86
B101: AGETOP_I | C101: 8 | D101: AJUDANTE | E101: h | F101: 1.15 | G101: 8.75 | H101: 10.14 | I101: 10.06 | J101: 11.66
B102: AGETOP_I | C102: 11 | D102: ENCANADOR | E102: h | F102: 1.15 | G102: 13.95 | H102: 16.16 | I102: 16.04 | J102: 18.58
B103: MÃO DE OBRA (B) - TOTAL | I103: 26.1 | J103: 30.24
B104: COTAÇÃO | C104: COT 102_SEE | D104: REGULADOR DE 2º ESTÁGIO 5KG/H | E104: UN | F104: 1 | G104: 59.83333333 | H104: 59.83333333 | I104: 59.83 | J104: 59.83
B105: AGETOP_I | C105: H689 | D105: FITA VEDAROSCA 12 MM | E105: m | F105: 2.82 | G105: 0.28 | H105: 0.28 | I105: 0.79 | J105: 0.79
B106: MATERIAL (C) - TOTAL | I106: 60.62 | J106: 60.62
A108: 210 | B108: FONTE | C108: CÓDIGO | D108: DESCRIÇÃO | E108: UNIDADE | F108: COEFIC. | G108: CUSTO UNITÁRIO | I108: CUSTO TOTAL (A) + (B) + (C) + (D) + (E)
G109: DESONERADO | H109: NÃO DESONER. | I109: DESONERADO | J109: NÃO DESONER.
B110: COMPOSIÇÃO | C110: COMP 210_SEE | D110: REGULADOR DE 1º ESTÁGIO 60KG/H MODELO AP-40 COM MANÔMETRO | E110: UN | I110: 232.47 | J110: 236.61
B111: AGETOP_I | C111: 8 | D111: AJUDANTE | E111: h | F111: 1.15 | G111: 8.75 | H111: 10.14 | I111: 10.06 | J111: 11.66
B112: AGETOP_I | C112: 11 | D112: ENCANADOR | E112: h | F112: 1.15 | G112: 13.95 | H112: 16.16 | I112: 16.04 | J112: 18.58
B113: MÃO DE OBRA (B) - TOTAL | I113: 26.1 | J113: 30.24
B114: COTAÇÃO | C114: COT 101_SEE | D114: REGULADOR DE 1º ESTÁGIO 60KG/H MODELO AP-40 COM MANÔMETRO | E114: UN | F114: 1 | G114: 205.5766667 | H114: 205.5766667 | I114: 205.58 | J114: 205.58
B115: AGETOP_I | C115: H689 | D115: FITA VEDAROSCA 12 MM | E115: m | F115: 2.82 | G115: 0.28 | H115: 0.28 | I115: 0.79 | J115: 0.79
B116: MATERIAL (C) - TOTAL | I116: 206.37 | J116: 206.37
A118: 235 | B118: FONTE | C118: CÓDIGO | D118: DESCRIÇÃO | E118: UNIDADE | F118: COEFIC. | G118: CUSTO UNITÁRIO | I118: CUSTO TOTAL (A) + (B) + (C) + (D) + (E)
G119: DESONERADO | H119: NÃO DESONER. | I119: DESONERADO | J119: NÃO DESONER.
B120: COMPOSIÇÃO | C120: COMP 235_SEE | D120: PLACA DE SINALIZAÇÃO EM PVC COD 01 - (300X300) PROIBIDO FUMAR | E120: UN | I120: 25.32 | J120: 25.44
B121: AGETOP_I | C121: 5 | D121: SERVENTE | E121: h | F121: 0.09 | G121: 8.75 | H121: 10.14 | I121: 0.79 | J121: 0.91
B122: MÃO DE OBRA (B) - TOTAL | I122: 0.79 | J122: 0.91
B123: AGETOP_I | C123: 3070 | D123: BUCHA DE NYLON S-6 | E123: un | F123: 2 | G123: 0.04 | H123: 0.04 | I123: 0.08 | J123: 0.08
B124: AGETOP_I | C124: 3393 | D124: PARAFUSO P/BUCHA S-6 | E124: un | F124: 2 | G124: 0.08 | H124: 0.08 | I124: 0.16 | J124: 0.16
B125: SINAPI_I | C125: 37556 | D125: PLACA DE SINALIZACAO DE SEGURANCA CONTRA INCENDIO, FOTOLUMINESCENTE, QUADRADA, *20 X 20* CM, EM PVC *2* MM ANTI-CHAMAS (SIMBOLOS, CORES E PICTOGRAMAS CONFORME NBR 13434) | E125: UN | F125: 1 | G125: 24.29 | H125: 24.29 | I125: 24.29 | J125: 24.29
B126: MATERIAL (C) - TOTAL | I126: 24.53 | J126: 24.53
A128: 236 | B128: FONTE | C128: CÓDIGO | D128: DESCRIÇÃO | E128: UNIDADE | F128: COEFIC. | G128: CUSTO UNITÁRIO | I128: CUSTO TOTAL (A) + (B) + (C) + (D) + (E)
G129: DESONERADO | H129: NÃO DESONER. | I129: DESONERADO | J129: NÃO DESONER.
B130: COMPOSIÇÃO | C130: COMP 236_SEE | D130: PLACA DE SINALIZAÇÃO EM PVC COD 06 - (300X300) PERIGO INFLAMÁVEL | E130: UN | I130: 25.32 | J130: 25.44
B131: AGETOP_I | C131: 5 | D131: SERVENTE | E131: h | F131: 0.09 | G131: 8.75 | H131: 10.14 | I131: 0.79 | J131: 0.91
B132: MÃO DE OBRA (B) - TOTAL | I132: 0.79 | J132: 0.91
B133: AGETOP_I | C133: 3070 | D133: BUCHA DE NYLON S-6 | E133: un | F133: 2 | G133: 0.04 | H133: 0.04 | I133: 0.08 | J133: 0.08
B134: AGETOP_I | C134: 3393 | D134: PARAFUSO P/BUCHA S-6 | E134: un | F134: 2 | G134: 0.08 | H134: 0.08 | I134: 0.16 | J134: 0.16
B135: SINAPI_I | C135: 37556 | D135: PLACA DE SINALIZACAO DE SEGURANCA CONTRA INCENDIO, FOTOLUMINESCENTE, QUADRADA, *20 X 20* CM, EM PVC *2* MM ANTI-CHAMAS (SIMBOLOS, CORES E PICTOGRAMAS CONFORME NBR 13434) | E135: UN | F135: 1 | G135: 24.29 | H135: 24.29 | I135: 24.29 | J135: 24.29
B136: MATERIAL (C) - TOTAL | I136: 24.53 | J136: 24.53
A138: 45 | B138: FONTE | C138: CÓDIGO | D138: DESCRIÇÃO | E138: UNIDADE | F138: COEFIC. | G138: CUSTO UNITÁRIO | I138: CUSTO TOTAL (A) + (B) + (C) + (D) + (E)
G139: DESONERADO | H139: NÃO DESONER. | I139: DESONERADO | J139: NÃO DESONER.
B140: COMPOSIÇÃO | C140: COMP 045_SEE | D140: LAUDO DE ESTANQUEIDADE | E140: UN | I140: 936 | J140: 1085.12
B141: AGETOP | C141: 250101 | D141: ENGENHEIRO - (OBRAS CIVIS) | E141: H | F141: 16 | G141: 58.5 | H141: 67.82 | I141: 936 | J141: 1085.12
B142: MÃO DE OBRA (B) - TOTAL | I142: 936 | J142: 1085.12
B143: MATERIAL (C) - TOTAL | I143: 0 | J143: 0
A145: 277 | B145: FONTE | C145: CÓDIGO | D145: DESCRIÇÃO | E145: UNIDADE | F145: COEFIC. | G145: CUSTO UNITÁRIO | I145: CUSTO TOTAL (A) + (B) + (C) + (D) + (E)
G146: DESONERADO | H146: NÃO DESONER. | I146: DESONERADO | J146: NÃO DESONER.
B147: COMPOSIÇÃO | C147: COMP 277_SEE | D147: MARCAÇÃO NO PISO - 1X1 M PARA EXTINTOR | E147: M2 | I147: 29.58 | J147: 29.65
B148: AGETOP_I | C148: 5 | D148: SERVENTE | E148: h | F148: 0.0333 | G148: 8.75 | H148: 10.14 | I148: 0.29 | J148: 0.34
B149: MÃO DE OBRA (B) - TOTAL | I149: 0.29 | J149: 0.34
B150: SINAPI_I | C150: 5318 | D150: SOLVENTE DILUENTE A BASE DE AGUARRAS | E150: L | F150: 0.13 | G150: 11 | H150: 11 | I150: 1.43 | J150: 1.43
B151: SINAPI | C151: 5824 | D151: CAMINHÃO TOCO, PBT 16.000 KG, CARGA ÚTIL MÁX. 10.685 KG, DIST. ENTRE EIXOS 4,8 M, POTÊNCIA 189 CV, INCLUSIVE CARROCERIA FIXA ABERTA DE MADEIRA P/ TRANSPORTE GERAL DE CARGA SECA, DIMEN. APROX. 2,5 X 7,00 X 0,50 M - CHP DIURNO. AF_06/2014 | E151: CHP | F151: 0.0033 | G151: 124.46 | H151: 127.65 | I151: 0.41 | J151: 0.42
B152: SINAPI_I | C152: 7343 | D152: TINTA A BASE DE RESINA ACRILICA, PARA SINALIZACAO HORIZONTAL VIARIA (NBR 11862) | E152: L | F152: 0.6 | G152: 12.82 | H152: 12.82 | I152: 7.69 | J152: 7.69
B153: SINAPI_I | C153: 7348 | D153: TINTA ACRILICA PREMIUM PARA PISO | E153: L | F153: 0.03 | G153: 13.33 | H153: 13.33 | I153: 0.4 | J153: 0.4
B154: SINAPI_I | C154: 25972 | D154: MICROESFERAS DE VIDRO PARA SINALIZACAO HORIZONTAL VIARIA, TIPO I-B (PREMIX) - NBR 16184 | E154: KG | F154: 2.14 | G154: 8.88 | H154: 8.88 | I154: 19 | J154: 19
B155: SINAPI | C155: 95133 | D155: MÁQUINA DEMARCADORA DE FAIXA DE TRÁFEGO À FRIO, AUTOPROPELIDA, POTÊNCIA 38 HP - CHP DIURNO. AF_07/2016 | E155: CHP | F155: 0.0033 | G155: 108.41 | H155: 111.96 | I155: 0.36 | J155: 0.37
B156: MATERIAL (C) - TOTAL | I156: 29.29 | J156: 29.31
A158: 277 | B158: FONTE | C158: CÓDIGO | D158: DESCRIÇÃO | E158: UNIDADE | F158: COEFIC. | G158: CUSTO UNITÁRIO | I158: CUSTO TOTAL (A) + (B) + (C) + (D) + (E)
G159: DESONERADO | H159: NÃO DESONER. | I159: DESONERADO | J159: NÃO DESONER.
B160: COMPOSIÇÃO | C160: COMP 277_SEE | D160: MARCAÇÃO NO PISO - 1X1 M PARA EXTINTOR | E160: M2 | I160: 29.58 | J160: 29.65
B161: AGETOP_I | C161: 5 | D161: SERVENTE | E161: h | F161: 0.0333 | G161: 8.75 | H161: 10.14 | I161: 0.29 | J161: 0.34
B162: MÃO DE OBRA (B) - TOTAL | I162: 0.29 | J162: 0.34
B163: SINAPI_I | C163: 5318 | D163: SOLVENTE DILUENTE A BASE DE AGUARRAS | E163: L | F163: 0.13 | G163: 11 | H163: 11 | I163: 1.43 | J163: 1.43
B164: SINAPI | C164: 5824 | D164: CAMINHÃO TOCO, PBT 16.000 KG, CARGA ÚTIL MÁX. 10.685 KG, DIST. ENTRE EIXOS 4,8 M, POTÊNCIA 189 CV, INCLUSIVE CARROCERIA FIXA ABERTA DE MADEIRA P/ TRANSPORTE GERAL DE CARGA SECA, DIMEN. APROX. 2,5 X 7,00 X 0,50 M - CHP DIURNO. AF_06/2014 | E164: CHP | F164: 0.0033 | G164: 124.46 | H164: 127.65 | I164: 0.41 | J164: 0.42
B165: SINAPI_I | C165: 7343 | D165: TINTA A BASE DE RESINA ACRILICA, PARA SINALIZACAO HORIZONTAL VIARIA (NBR 11862) | E165: L | F165: 0.6 | G165: 12.82 | H165: 12.82 | I165: 7.69 | J165: 7.69
B166: SINAPI_I | C166: 7348 | D166: TINTA ACRILICA PREMIUM PARA PISO | E166: L | F166: 0.03 | G166: 13.33 | H166: 13.33 | I166: 0.4 | J166: 0.4
B167: SINAPI_I | C167: 25972 | D167: MICROESFERAS DE VIDRO PARA SINALIZACAO HORIZONTAL VIARIA, TIPO I-B (PREMIX) - NBR 16184 | E167: KG | F167: 2.14 | G167: 8.88 | H167: 8.88 | I167: 19 | J167: 19
B168: SINAPI | C168: 95133 | D168: MÁQUINA DEMARCADORA DE FAIXA DE TRÁFEGO À FRIO, AUTOPROPELIDA, POTÊNCIA 38 HP - CHP DIURNO. AF_07/2016 | E168: CHP | F168: 0.0033 | G168: 108.41 | H168: 111.96 | I168: 0.36 | J168: 0.37
B169: MATERIAL (C) - TOTAL | I169: 29.29 | J169: 29.31
A171: 24 | B171: FONTE | C171: CÓDIGO | D171: DESCRIÇÃO | E171: UNIDADE | F171: COEFIC. | G171: CUSTO UNITÁRIO | I171: CUSTO TOTAL (A) + (B) + (C) + (D) + (E)
G172: DESONERADO | H172: NÃO DESONER. | I172: DESONERADO | J172: NÃO DESONER.
B173: COMPOSIÇÃO | C173: COMP 024_SEE | D173: SINALIZADOR FOTOLUMINESCENTE PARA EXTINTOR | E173: UN | G173: - | H173: - | I173: 25.32 | J173: 25.44
B174: AGETOP_I | C174: 5 | D174: SERVENTE | E174: h | F174: 0.09 | G174: 8.75 | H174: 10.14 | I174: 0.79 | J174: 0.91
B175: MÃO DE OBRA (B) - TOTAL | I175: 0.79 | J175: 0.91
B176: AGETOP_I | C176: 3070 | D176: BUCHA DE NYLON S-6 | E176: un | F176: 2 | G176: 0.04 | H176: 0.04 | I176: 0.08 | J176: 0.08
B177: AGETOP_I | C177: 3393 | D177: PARAFUSO P/BUCHA S-6 | E177: un | F177: 2 | G177: 0.08 | H177: 0.08 | I177: 0.16 | J177: 0.16
B178: SINAPI_I | C178: 37556 | D178: PLACA DE SINALIZACAO DE SEGURANCA CONTRA INCENDIO, FOTOLUMINESCENTE, QUADRADA, *20 X 20* CM, EM PVC *2* MM ANTI-CHAMAS (SIMBOLOS, CORES E PICTOGRAMAS CONFORME NBR 13434) | E178: UN | F178: 1 | G178: 24.29 | H178: 24.29 | I178: 24.29 | J178: 24.29
B179: MATERIAL (C) - TOTAL | I179: 24.53 | J179: 24.53
A181: 33 | B181: FONTE | C181: CÓDIGO | D181: DESCRIÇÃO | E181: UNIDADE | F181: COEFIC. | G181: CUSTO UNITÁRIO | I181: CUSTO TOTAL (A) + (B) + (C) + (D) + (E)
G182: DESONERADO | H182: NÃO DESONER. | I182: DESONERADO | J182: NÃO DESONER.
B183: COMPOSIÇÃO | C183: COMP 033_SEE | D183: LUMINÁRIA DE EMERGÊNCIA LED PORTÁTIL - 30 LEDS | E183: UN | I183: 86.53 | J183: 88.69
B184: AGETOP_I | C184: 8 | D184: AJUDANTE | E184: h | F184: 0.6 | G184: 8.75 | H184: 10.14 | I184: 5.25 | J184: 6.08
B185: AGETOP_I | C185: 12 | D185: ELETRICISTA | E185: h | F185: 0.6 | G185: 13.95 | H185: 16.16 | I185: 8.37 | J185: 9.7
B186: MÃO DE OBRA (B) - TOTAL | I186: 13.62 | J186: 15.78
B187: SINAPI_I | C187: 38774 | D187: LUMINARIA DE EMERGENCIA 30 LEDS, POTENCIA 2 W, BATERIA DE LITIO, AUTONOMIA DE 6 HORAS | E187: UN | F187: 1 | G187: 72.91 | H187: 72.91 | I187: 72.91 | J187: 72.91
B188: MATERIAL (C) - TOTAL | I188: 72.91 | J188: 72.91
A190: 411 | B190: FONTE | C190: CÓDIGO | D190: DESCRIÇÃO | E190: UNIDADE | F190: COEFIC. | G190: CUSTO UNITÁRIO | I190: CUSTO TOTAL (A) + (B) + (C) + (D) + (E)
G191: DESONERADO | H191: NÃO DESONER. | I191: DESONERADO | J191: NÃO DESONER.
B192: COMPOSIÇÃO | C192: COMP 411_SEE | D192: PLACA DE SINALIZAÇÃO EM PVC COD 13 - (316X158) SAÍDA DE EMERGÊNCIA | E192: UN | I192: 30.82 | J192: 30.94
B193: AGETOP_I | C193: 5 | D193: SERVENTE | E193: h | F193: 0.09 | G193: 8.75 | H193: 10.14 | I193: 0.79 | J193: 0.91
B194: MÃO DE OBRA (B) - TOTAL | I194: 0.79 | J194: 0.91
B195: AGETOP_I | C195: 3070 | D195: BUCHA DE NYLON S-6 | E195: un | F195: 2 | G195: 0.04 | H195: 0.04 | I195: 0.08 | J195: 0.08
B196: AGETOP_I | C196: 3393 | D196: PARAFUSO P/BUCHA S-6 | E196: un | F196: 2 | G196: 0.08 | H196: 0.08 | I196: 0.16 | J196: 0.16
B197: SINAPI_I | C197: 37559 | D197: PLACA DE SINALIZACAO DE SEGURANCA CONTRA INCENDIO, FOTOLUMINESCENTE, RETANGULAR, *12 X 40* CM, EM PVC *2* MM ANTI-CHAMAS (SIMBOLOS, CORES E PICTOGRAMAS CONFORME NBR 13434) | E197: UN | F197: 1 | G197: 29.79 | H197: 29.79 | I197: 29.79 | J197: 29.79
B198: MATERIAL (C) - TOTAL | I198: 30.03 | J198: 30.03
A200: 412 | B200: FONTE | C200: CÓDIGO | D200: DESCRIÇÃO | E200: UNIDADE | F200: COEFIC. | G200: CUSTO UNITÁRIO | I200: CUSTO TOTAL (A) + (B) + (C) + (D) + (E)
G201: DESONERADO | H201: NÃO DESONER. | I201: DESONERADO | J201: NÃO DESONER.
B202: COMPOSIÇÃO | C202: COMP 412_SEE | D202: PLACA DE SINALIZAÇÃO EM PVC COD 17 - (316X158) MENSAGEM "SAÍDA" | E202: UN | I202: 30.82 | J202: 30.94
B203: AGETOP_I | C203: 5 | D203: SERVENTE | E203: h | F203: 0.09 | G203: 8.75 | H203: 10.14 | I203: 0.79 | J203: 0.91
B204: MÃO DE OBRA (B) - TOTAL | I204: 0.79 | J204: 0.91
B205: AGETOP_I | C205: 3070 | D205: BUCHA DE NYLON S-6 | E205: un | F205: 2 | G205: 0.04 | H205: 0.04 | I205: 0.08 | J205: 0.08
B206: AGETOP_I | C206: 3393 | D206: PARAFUSO P/BUCHA S-6 | E206: un | F206: 2 | G206: 0.08 | H206: 0.08 | I206: 0.16 | J206: 0.16
B207: SINAPI_I | C207: 37559 | D207: PLACA DE SINALIZACAO DE SEGURANCA CONTRA INCENDIO, FOTOLUMINESCENTE, RETANGULAR, *12 X 40* CM, EM PVC *2* MM ANTI-CHAMAS (SIMBOLOS, CORES E PICTOGRAMAS CONFORME NBR 13434) | E207: UN | F207: 1 | G207: 29.79 | H207: 29.79 | I207: 29.79 | J207: 29.79
B208: MATERIAL (C) - TOTAL | I208: 30.03 | J208: 30.03
A210: 338 | B210: FONTE | C210: CÓDIGO | D210: DESCRIÇÃO | E210: UNIDADE | F210: COEFIC. | G210: CUSTO UNITÁRIO | I210: CUSTO TOTAL (A) + (B) + (C) + (D) + (E)
G211: DESONERADO | H211: NÃO DESONER. | I211: DESONERADO | J211: NÃO DESONER.
B212: COMPOSIÇÃO | C212: COMP 338_SEE | D212: TELHA GALVALUME AÇO 0,43 COM ISOPOR DE 30 MM ACABAMENTO EM TELHA PREPINTADA NA COR BRANCA OU ACABAMENTO AÇO LIZO PRE PINTADO BRANCO | E212: M2 | I212: 97.28 | J212: 97.86
B213: AGETOP_I | C213: 15 | D213: MONTADOR DE ESTRUT. METALICA | E213: h | F213: 0.1602 | G213: 13.95 | H213: 16.16 | I213: 2.23 | J213: 2.59
B214: AGETOP_I | C214: 8 | D214: AJUDANTE | E214: h | F214: 0.1602 | G214: 8.75 | H214: 10.14 | I214: 1.4 | J214: 1.62
B215: MÃO DE OBRA (B) - TOTAL | I215: 3.63 | J215: 4.21
B216: COTAÇÃO | C216: COT 155_SEE | D216: TELHA GALVALUME AÇO 0,43 COM ISOPOR DE 30MM ACABAMENTO EM TELHA PINTADA NA COR BRANCA OU ACABAMENTO LISO PRE PINTADO | E216: m2 | F216: 1.176 | G216: 79.63333333 | H216: 79.63333333 | I216: 93.65 | J216: 93.65
B217: MATERIAL (C) - TOTAL | I217: 93.65 | J217: 93.65
